Workbook

Sheet A1.1 Distributor Information
C3: =D8 -> EPCOR Natural Gas Limited Partnership
C4: ="OEB Application Number: " & D9 -> OEB Application Number: EB-2024-0238 Exhibit A - 2025 Custom Incentive Application
C6: Distributor Information
C8: Distributor Name | D8: EPCOR Natural Gas Limited Partnership
C9: OEB Application Number | D9: EB-2024-0238 Exhibit A - 2025 Custom Incentive Application
C12: =MID(CELL("filename",A1),FIND("]",CELL("filename",A1))+1,255) -> A1.1 Distributor Information

Sheet B1.1 Current Distribution Rates
C2: ='A1.1 Distributor Information'!C3 -> EPCOR Natural Gas Limited Partnership
C3: ='A1.1 Distributor Information'!C4 -> OEB Application Number: EB-2024-0238 Exhibit A - 2025 Custom Incentive Application
C5: Current Distribution Tariff Sheet Rates
E7: Fixed | G7: Delivery Charge | J7: Delivery Charge
C8: Rate Class | E8: Monthly Base | F8: =OneDollar -> Bill 32 Rate | G8: Tier 1 | H8: Tier 2 | I8: Tier 3 | J8: Contract Demand | K8: Gas Supply | L8: Upstream Recovery Charge | M8: Transportation & Storage Charge | N8: Transportation Charge From Dawn | O8: Transportation Charge From Kirkwall | P8: Transportation Charge From Parkway | Q8: Federal Carbon Charge | R8: Facility Carbon Charge
E9: $/month | F9: $ / month | G9: ₵ / m3 | H9: ₵ / m3 | I9: ₵ / m3 | J9: ₵ /contracted m3 | K9: ₵ / m3 | L9: (A) | M9: ₵ / m3 | N9: ₵ /contracted m3 | O9: ₵ /contracted m3 | P9: ₵ /contracted m3 | Q9: ₵ / m3 | R9: ₵ / m3
C10: Rate 1 | D10: General Firm Service | E10: 27.448078 | F10: 1 | G10: 29.403536 | H10: 28.82426996 | I10: 27.97287788 | K10: 12.9848 | L10: 1.474 | M10: 2.6982 | Q10: 15.25 | R10: 0.0013
C11: Rate 6 | D11: Large Volume General Firm Service | E11: 111.932054 | F11: 1 | G11: 27.12547862 | H11: 24.4130229 | I11: 23.1921414 | K11: 12.9848 | L11: 2.92 | M11: 5.6413 | Q11: 15.25 | R11: 0.0013
C12: Rate 11 | D12: Large Volume Seasonal Service | E12: 223.864108 | F12: 1 | G12: 16.84949564 | H12: 16.84949564 | I12: 16.84949564 | K12: 12.9848 | L12: 0.0352 | M12: 1.8166 | Q12: 15.25 | R12: 0.0013
C13: Rate 16 | D13: Contracted Firm Service | E13: 1646.034926 | F13: 1 | J13: 112.275027 | L13: 14.2434 | N13: 18.2999 | O13: 11.848 | P13: 11.848 | Q13: 15.25 | R13: 0.0013
C14: (A) Rates 1, 6, and 11 all charged on cents / m3 basis. Rate 16 billed on cents / m3 of contracted demand basis
C18: Name for $1 Charge: | D18: Bill 32 Rate

Sheet B1.2 Billing Determinants
C2: ='A1.1 Distributor Information'!C3 -> EPCOR Natural Gas Limited Partnership
C3: ='A1.1 Distributor Information'!C4 -> OEB Application Number: EB-2024-0238 Exhibit A - 2025 Custom Incentive Application
C5: Billing Determinants
E7: Fixed | F7: Delivery Charge | I7: Delivery Charge
C8: Rate Class | E8: Monthly Base | F8: Tier 1 | G8: Tier 2 | H8: Tier 3 | I8: Contract Demand | J8: Gas Supply
C9: Rate 1 | D9: General Firm Service | E9: 5516 | F9: 4885012 | G9: 3296557 | H9: 89051 | J9: 8270620
C10: Rate 6 | D10: Large Volume General Firm Service | E10: 54 | F10: 525661 | G10: 1137819 | H10: 564677 | J10: 2228157
C11: Rate 11 | D11: Large Volume Seasonal Service | E11: 9 | H11: 1431902 | J11: 1431902
C12: Rate 16 | D12: Contracted Firm Service | E12: 3 | I12: 95824 | J12: 0

Sheet B1.3 Current Rev From Rates
C2: ='A1.1 Distributor Information'!C3 -> EPCOR Natural Gas Limited Partnership
C3: ='A1.1 Distributor Information'!C4 -> OEB Application Number: EB-2024-0238 Exhibit A - 2025 Custom Incentive Application
C6: Forecasted Revenue from Current Rates
C8: Months / Year | D8: 12
D9: EB-2023-0161 Exhibit A - 2024 Custom Incentive Application
E11: Fixed Monthly | G11: Delivery Charge | J11: Delivery Charge
C12: Rate Class | E12: Base | F12: =OneDollar -> Bill 32 Rate | G12: Tier 1 | H12: Tier 2 | I12: Tier 3 | J12: Contract Demand | K12: Gas Supply | L12: Upstream Recovery Charge | M12: Transportation & Storage Charge | N12: Federal Carbon Charge | O12: Total
M13: (A)
C14: Rate 1 | D14: General Firm Service | E14: ='B1.2 Billing Determinants'!E9*'B1.1 Current Distribution Rates'!E10*$D$8 -> 1816843.179 | F14: ='B1.1 Current Distribution Rates'!F10*'B1.2 Billing Determinants'!E9*$D$8 -> 66192 | G14: ='B1.2 Billing Determinants'!F9*'B1.1 Current Distribution Rates'!G10/100 -> 1436366.262 | H14: ='B1.2 Billing Determinants'!G9*'B1.1 Current Distribution Rates'!H10/100 -> 950208.4891 | I14: ='B1.2 Billing Determinants'!H9*'B1.1 Current Distribution Rates'!I10/100 -> 24910.12748 | J14: ='B1.2 Billing Determinants'!I9*'B1.1 Current Distribution Rates'!J10/100*$D$8 -> 0 | K14: ='B1.2 Billing Determinants'!J9*'B1.1 Current Distribution Rates'!K10/100 -> 1073923.466 | L14: ='B1.1 Current Distribution Rates'!L10*'B1.2 Billing Determinants'!$J9/100 -> 121908.9388 | M14: ='B1.1 Current Distribution Rates'!M10*'B1.2 Billing Determinants'!$J9/100 -> 223157.8688 | N14: ='B1.1 Current Distribution Rates'!Q10*'B1.2 Billing Determinants'!J9/100 -> 1261269.55 | O14: =SUM(E14:N14) -> 6974779.881
C15: Rate 6 | D15: Large Volume General Firm Service | E15: ='B1.2 Billing Determinants'!E10*'B1.1 Current Distribution Rates'!E11*$D$8 -> 72531.97099 | F15: ='B1.1 Current Distribution Rates'!F11*'B1.2 Billing Determinants'!E10*$D$8 -> 648 | G15: ='B1.2 Billing Determinants'!F10*'B1.1 Current Distribution Rates'!G11/100 -> 142588.0622 | H15: ='B1.2 Billing Determinants'!G10*'B1.1 Current Distribution Rates'!H11/100 -> 277776.013 | I15: ='B1.2 Billing Determinants'!H10*'B1.1 Current Distribution Rates'!I11/100 -> 130960.6883 | J15: ='B1.2 Billing Determinants'!I10*'B1.1 Current Distribution Rates'!J11/100*$D$8 -> 0 | K15: ='B1.2 Billing Determinants'!J10*'B1.1 Current Distribution Rates'!K11/100 -> 289321.7301 | L15: ='B1.1 Current Distribution Rates'!L11*'B1.2 Billing Determinants'!$J10/100 -> 65062.1844 | M15: ='B1.1 Current Distribution Rates'!M11*'B1.2 Billing Determinants'!$J10/100 -> 125697.0208 | N15: ='B1.1 Current Distribution Rates'!Q11*'B1.2 Billing Determinants'!J10/100 -> 339793.9425 | O15: =SUM(E15:N15) -> 1444379.612
C16: Rate 11 | D16: Large Volume Seasonal Service | E16: ='B1.2 Billing Determinants'!E11*'B1.1 Current Distribution Rates'!E12*$D$8 -> 24177.32366 | F16: ='B1.1 Current Distribution Rates'!F12*'B1.2 Billing Determinants'!E11*$D$8 -> 108 | G16: ='B1.2 Billing Determinants'!F11*'B1.1 Current Distribution Rates'!G12/100 -> 0 | H16: ='B1.2 Billing Determinants'!G11*'B1.1 Current Distribution Rates'!H12/100 -> 0 | I16: ='B1.2 Billing Determinants'!H11*'B1.1 Current Distribution Rates'!I12/100 -> 241268.2651 | J16: ='B1.2 Billing Determinants'!I11*'B1.1 Current Distribution Rates'!J12/100*$D$8 -> 0 | K16: ='B1.2 Billing Determinants'!J11*'B1.1 Current Distribution Rates'!K12/100 -> 185929.6109 | L16: ='B1.1 Current Distribution Rates'!L12*'B1.2 Billing Determinants'!$J11/100 -> 504.029504 | M16: ='B1.1 Current Distribution Rates'!M12*'B1.2 Billing Determinants'!$J11/100 -> 26011.93173 | N16: ='B1.1 Current Distribution Rates'!Q12*'B1.2 Billing Determinants'!J11/100 -> 218365.055 | O16: =SUM(E16:N16) -> 696364.2159
C17: Rate 16 | D17: Contracted Firm Service | E17: ='B1.2 Billing Determinants'!E12*'B1.1 Current Distribution Rates'!E13*$D$8 -> 59257.25734 | F17: ='B1.1 Current Distribution Rates'!F13*'B1.2 Billing Determinants'!E12*$D$8 -> 36 | G17: ='B1.2 Billing Determinants'!F12*'B1.1 Current Distribution Rates'!G13/100 -> 0 | H17: ='B1.2 Billing Determinants'!G12*'B1.1 Current Distribution Rates'!H13/100 -> 0 | I17: ='B1.2 Billing Determinants'!H12*'B1.1 Current Distribution Rates'!I13/100 -> 0 | J17: ='B1.2 Billing Determinants'!I12*'B1.1 Current Distribution Rates'!J13/100*$D$8 -> 1291037.062 | K17: ='B1.2 Billing Determinants'!J12*'B1.1 Current Distribution Rates'!K13/100 -> 0 | L17: ='B1.1 Current Distribution Rates'!L13*'B1.2 Billing Determinants'!$I12*$D$8/100 -> 163783.1474 | M17: ='B1.1 Current Distribution Rates'!N13*'B1.2 Billing Determinants'!$I12/100*$D$8 -> 210428.3541 | N17: ='B1.1 Current Distribution Rates'!Q13*'B1.2 Billing Determinants'!I12/100*D8 -> 175357.92 | O17: =SUM(E17:N17) -> 1899899.741
C18: Total Revenue | E18: =SUM(E14:E17) -> 1972809.731 | F18: 66984 | G18: 1578954.324 | H18: 1227984.502 | I18: 397139.0808 | J18: 1291037.062 | K18: 1549174.807 | L18: 351258.3001 | M18: 585295.1755 | N18: 1994786.468 | O18: 11015423.45
C19: (A) Transportation & Storage for Rates 1, 6, and 11. Transportation only for Rate 16.

Sheet C1.1 Current Rate Riders
C2: ='A1.1 Distributor Information'!C3 -> EPCOR Natural Gas Limited Partnership
C3: ='A1.1 Distributor Information'!C4 -> OEB Application Number: EB-2024-0238 Exhibit A - 2025 Custom Incentive Application
C5: Current Rate Riders
C7: Description: | E7: Delay in Revenue Recovery Rate Rider
C8: Effective Until: | E8: Dec 31, 2028
C10: Rate 1 | General Firm Service | D10: cents / m3 volume | E10: 1.633 | F10: Cents/m3
C11: Rate 6 | Large Volume General Firm Service | D11: cents / m3 volume | E11: 0.909 | F11: Cents/m3
C12: Rate 11 | Large Volume Seasonal Service | D12: cents / m3 volume | E12: 0.5524 | F12: Cents/m3
C13: Rate 16 | Contracted Firm Service | D13: cents / contracted demand / month | E13: 0.0601 | F13: $/contracted demand m3
C16: Energy Content Variance Account (ECVA)
E17: ECVA Rate Rider
C19: Rate 1 | General Firm Service | E19: 0.1727480446 | F19: Cents/m3
C20: Rate 6 | Large Volume General Firm Service | E20: 0.1905159726 | F20: Cents/m3
C21: Rate 11 | Large Volume Seasonal Service | E21: 0.1426786493 | F21: Cents/m3
C22: Rate 16 | Contracted Firm Service | E22: 0 | F22: Cents/contracted demand m3
C25: Contribution in Aid of Construction Variance Account (CIACVA)
E26: CIACVA Rate Rider
C28: Rate 1 | General Firm Service | E28: 2.332724695 | F28: Cents/m3
C29: Rate 6 | Large Volume General Firm Service | E29: 3.129249068 | F29: Cents/m3
C30: Rate 11 | Large Volume Seasonal Service | E30: 0.6058564944 | F30: Cents/m3
C31: Rate 16 | Contracted Firm Service | E31: 4.772141704 | F31: Cents/contracted demand m3
C34: Municipal Tax Variance Account (MTVA)
E35: MTVA Rate Rider
C37: Rate 1 | General Firm Service | E37: -2.290601556 | F37: Cents/m3
C38: Rate 6 | Large Volume General Firm Service | E38: -3.98751292 | F38: Cents/m3
C39: Rate 11 | Large Volume Seasonal Service | E39: -0.773979515 | F39: Cents/m3
C40: Rate 16 | Contracted Firm Service | E40: -5.637952998 | F40: Cents/contracted demand m3
C43: Other Revenue Deferral Account (ORDA)
E44: ORDA Rate Rider
C46: Rate 1 | General Firm Service | E46: -0.08927524529 | F46: Cents/m3
C47: Rate 6 | Large Volume General Firm Service | E47: -0.075936582 | F47: Cents/m3
C48: Rate 11 | Large Volume Seasonal Service | E48: -0.02938153791 | F48: Cents/m3
C49: Rate 16 | Contracted Firm Service | E49: -0.05058594256 | F49: Cents/contracted demand m3/month

Sheet C1.2 - PCA
A1: ='C1.1 Current Rate Riders'!C2 -> EPCOR Natural Gas Limited Partnership
A2: ='C1.1 Current Rate Riders'!C3 -> OEB Application Number: EB-2024-0238 Exhibit A - 2025 Custom Incentive Application
A4: 2025 OEB Inflation Factor | H4: 0.036
A6: Incentive Rate Adjustment (IR) = [(1.0 – 0.314) x 0.0127] + [0.314 x Inflation (I)]
D8: 1 | E8: -0.314 | F8: 0.0127 | G8: + | H8: 0.314
E9: =D8+E8 -> 0.686 | F9: =F8 -> 0.0127 | H9: =H8*H4 -> 0.011304
F10: =E9*F9 -> 0.0087122 | H10: =H9 -> 0.011304
A12: 2025 PCA Used in Application | H12: =F10+H10 -> 0.0200162

Sheet D1.1 Rate 1 Adjustment
C2: ='A1.1 Distributor Information'!C3 -> EPCOR Natural Gas Limited Partnership
C3: ='A1.1 Distributor Information'!C4 -> OEB Application Number: EB-2024-0238 Exhibit A - 2025 Custom Incentive Application
C5: Rate 1 Incentive Rate Adjustment
C6: =MID(CELL("filename",A1),FIND("]",CELL("filename",A1))+1,255) -> D1.1 Rate 1 Adjustment
C8: Rate 1
C10: GDP-IPI
C11: Less Productivity
C12: Less Stretch Factor
C13: Incentive Rate Adjustment | E13: ='C1.2 - PCA'!H12 -> 0.0200162
C14: Months / Year | E14: 12
D16: Unit | E16: Current Rate | F16: Price Cap | G16: Adjusted Rates | H16: Billing Determinants | I16: Revenue
C17: Monthly Base | D17: $/month | E17: ='B1.1 Current Distribution Rates'!E10 -> 27.448078 | F17: =$E$13 -> 0.0200162 | G17: =E17*(1+F17) -> 27.99748422 | H17: =INDEX('B1.2 Billing Determinants'!$E$9:$J$12,MATCH($C$8,'B1.2 Billing Determinants'!$C$9:$C$12,0),MATCH(C17,'B1.2 Billing Determinants'!$E$8:$J$8,0)) -> 5516 | I17: =G17*H17*$E$14 -> 1853209.475
C18: =OneDollar -> Bill 32 Rate | D18: $/month | E18: ='B1.1 Current Distribution Rates'!F10 -> 1 | F18: 0 | G18: =E18*(1+F18) -> 1 | H18: =H17 -> 5516 | I18: =G18*H18*$E$14 -> 66192
C19: Tier 1 | D19: cents / m3 | E19: ='B1.1 Current Distribution Rates'!G10 -> 29.403536 | F19: =$E$13 -> 0.0200162 | G19: =E19*(1+F19) -> 29.99208306 | H19: =INDEX('B1.2 Billing Determinants'!$E$9:$J$12,MATCH($C$8,'B1.2 Billing Determinants'!$C$9:$C$12,0),MATCH(C19,'B1.2 Billing Determinants'!$E$8:$J$8,0)) -> 4885012 | I19: =G19*H19/100 -> 1465116.856
C20: Tier 2 | D20: cents / m3 | E20: ='B1.1 Current Distribution Rates'!H10 -> 28.82426996 | F20: =$E$13 -> 0.0200162 | G20: 29.40122231 | H20: =INDEX('B1.2 Billing Determinants'!$E$9:$J$12,MATCH($C$8,'B1.2 Billing Determinants'!$C$9:$C$12,0),MATCH(C20,'B1.2 Billing Determinants'!$E$8:$J$8,0)) -> 3296557 | I20: =G20*H20/100 -> 969228.0522
C21: Tier 3 | D21: cents / m3 | E21: ='B1.1 Current Distribution Rates'!I10 -> 27.97287788 | F21: =$E$13 -> 0.0200162 | G21: 28.5327886 | H21: =INDEX('B1.2 Billing Determinants'!$E$9:$J$12,MATCH($C$8,'B1.2 Billing Determinants'!$C$9:$C$12,0),MATCH(C21,'B1.2 Billing Determinants'!$E$8:$J$8,0)) -> 89051 | I21: 25408.73357
C22: Contract Demand | D22: cents / m3 | E22: ='B1.1 Current Distribution Rates'!J10 -> 0 | F22: =$E$13 -> 0.0200162 | G22: 0 | H22: =INDEX('B1.2 Billing Determinants'!$E$9:$J$12,MATCH($C$8,'B1.2 Billing Determinants'!$C$9:$C$12,0),MATCH(C22,'B1.2 Billing Determinants'!$E$8:$J$8,0)) -> 0 | I22: =G22*H22/100*$E$14 -> 0
C23: Gas Supply | D23: cents / m3 | E23: ='B1.1 Current Distribution Rates'!K10 -> 12.9848 | F23: 0 | G23: 12.9848 | H23: =INDEX('B1.2 Billing Determinants'!$E$9:$J$12,MATCH($C$8,'B1.2 Billing Determinants'!$C$9:$C$12,0),MATCH(C23,'B1.2 Billing Determinants'!$E$8:$J$8,0)) -> 8270620 | I23: 1073923.466
C24: Upstream Recovery Charge | D24: cents / m3 | E24: ='B1.1 Current Distribution Rates'!L10 -> 1.474 | F24: 0 | G24: 1.474 | H24: =H23 -> 8270620 | I24: 121908.9388
C25: Transportation & Storage Charge | D25: cents / m3 | E25: ='B1.1 Current Distribution Rates'!M10 -> 2.6982 | F25: 0 | G25: 2.6982 | H25: =H24 -> 8270620 | I25: 223157.8688
C26: Federal Carbon Charge | D26: cents / m3 | E26: ='B1.1 Current Distribution Rates'!Q10 -> 15.25 | F26: 0 | G26: 15.25 | H26: =H25 -> 8270620 | I26: =G26*H26/100 -> 1261269.55
I27: =SUM(I17:I26) -> 7059414.941

Sheet D1.2 Rate 6 Adjustment
C2: ='A1.1 Distributor Information'!C3 -> EPCOR Natural Gas Limited Partnership
C3: ='A1.1 Distributor Information'!C4 -> OEB Application Number: EB-2024-0238 Exhibit A - 2025 Custom Incentive Application
C5: Rate 6 Incentive Rate Adjustment
C6: =MID(CELL("filename",A1),FIND("]",CELL("filename",A1))+1,255) -> D1.2 Rate 6 Adjustment
C8: Rate 6
C10: GDP-IPI
C11: Less Productivity
C12: Less Stretch Factor
C13: Incentive Rate Adjustment | E13: ='D1.1 Rate 1 Adjustment'!E13 -> 0.0200162
C14: Months / Year | E14: 12
D16: Unit | E16: Current Rate | F16: Price Cap | G16: Adjusted Rates | H16: Billing Determinants | I16: Revenue
C17: Monthly Base | D17: $/month | E17: ='B1.1 Current Distribution Rates'!E11 -> 111.932054 | F17: =$E$13 -> 0.0200162 | G17: =E17*(1+F17) -> 114.1725084 | H17: =INDEX('B1.2 Billing Determinants'!$E$9:$J$12,MATCH($C$8,'B1.2 Billing Determinants'!$C$9:$C$12,0),MATCH(C17,'B1.2 Billing Determinants'!$E$8:$J$8,0)) -> 54 | I17: =G17*H17*12 -> 73983.78543
C18: =OneDollar -> Bill 32 Rate | D18: $/month | E18: ='B1.1 Current Distribution Rates'!F11 -> 1 | F18: 0 | G18: =E18*(1+F18) -> 1 | H18: =H17 -> 54 | I18: =G18*H18*12 -> 648
C19: Tier 1 | D19: cents / m3 | E19: ='B1.1 Current Distribution Rates'!G11 -> 27.12547862 | F19: =$E$13 -> 0.0200162 | G19: =E19*(1+F19) -> 27.66842763 | H19: =INDEX('B1.2 Billing Determinants'!$E$9:$J$12,MATCH($C$8,'B1.2 Billing Determinants'!$C$9:$C$12,0),MATCH(C19,'B1.2 Billing Determinants'!$E$8:$J$8,0)) -> 525661 | I19: =G19*H19/100 -> 145442.1333
C20: Tier 2 | D20: cents / m3 | E20: ='B1.1 Current Distribution Rates'!H11 -> 24.4130229 | F20: =$E$13 -> 0.0200162 | G20: 24.90167885 | H20: =INDEX('B1.2 Billing Determinants'!$E$9:$J$12,MATCH($C$8,'B1.2 Billing Determinants'!$C$9:$C$12,0),MATCH(C20,'B1.2 Billing Determinants'!$E$8:$J$8,0)) -> 1137819 | I20: =G20*H20/100 -> 283336.0333
C21: Tier 3 | D21: cents / m3 | E21: ='B1.1 Current Distribution Rates'!I11 -> 23.1921414 | F21: =$E$13 -> 0.0200162 | G21: 23.65635994 | H21: =INDEX('B1.2 Billing Determinants'!$E$9:$J$12,MATCH($C$8,'B1.2 Billing Determinants'!$C$9:$C$12,0),MATCH(C21,'B1.2 Billing Determinants'!$E$8:$J$8,0)) -> 564677 | I21: 133582.0236
C22: Contract Demand | D22: cents / m3 | E22: ='B1.1 Current Distribution Rates'!J11 -> 0 | F22: =$E$13 -> 0.0200162 | G22: 0 | H22: =INDEX('B1.2 Billing Determinants'!$E$9:$J$12,MATCH($C$8,'B1.2 Billing Determinants'!$C$9:$C$12,0),MATCH(C22,'B1.2 Billing Determinants'!$E$8:$J$8,0)) -> 0 | I22: =G22*H22/100*12 -> 0
C23: Gas Supply | D23: cents / m3 | E23: ='B1.1 Current Distribution Rates'!K11 -> 12.9848 | F23: 0 | G23: 12.9848 | H23: =INDEX('B1.2 Billing Determinants'!$E$9:$J$12,MATCH($C$8,'B1.2 Billing Determinants'!$C$9:$C$12,0),MATCH(C23,'B1.2 Billing Determinants'!$E$8:$J$8,0)) -> 2228157 | I23: 289321.7301
C24: Upstream Recovery Charge | D24: cents / m3 | E24: =INDEX('B1.1 Current Distribution Rates'!$E$10:$Q$13,MATCH($C$8,'B1.1 Current Distribution Rates'!$C$10:$C$13,0),MATCH(C24,'B1.1 Current Distribution Rates'!$E$8:$Q$8,0)) -> 2.92 | F24: 0 | G24: 2.92 | H24: =H23 -> 2228157 | I24: 65062.1844
C25: Transportation & Storage Charge | D25: cents / m3 | E25: =INDEX('B1.1 Current Distribution Rates'!$E$10:$Q$13,MATCH($C$8,'B1.1 Current Distribution Rates'!$C$10:$C$13,0),MATCH(C25,'B1.1 Current Distribution Rates'!$E$8:$Q$8,0)) -> 5.6413 | F25: ='D1.1 Rate 1 Adjustment'!$F$25 -> 0 | G25: 5.6413 | H25: =H24 -> 2228157 | I25: 125697.0208
C26: Federal Carbon Charge | D26: cents / m3 | E26: =INDEX('B1.1 Current Distribution Rates'!$E$10:$Q$13,MATCH($C$8,'B1.1 Current Distribution Rates'!$C$10:$C$13,0),MATCH(C26,'B1.1 Current Distribution Rates'!$E$8:$Q$8,0)) -> 15.25 | F26: 0 | G26: 15.25 | H26: =H25 -> 2228157 | I26: 339793.9425
I27: =SUM(I17:I26) -> 1456866.854

Sheet D1.3 Rate 11 Adjustment
C2: ='A1.1 Distributor Information'!C3 -> EPCOR Natural Gas Limited Partnership
C3: ='A1.1 Distributor Information'!C4 -> OEB Application Number: EB-2024-0238 Exhibit A - 2025 Custom Incentive Application
C5: Rate 11 Incentive Rate Adjustment
C6: =MID(CELL("filename",A1),FIND("]",CELL("filename",A1))+1,255) -> D1.3 Rate 11 Adjustment
C8: Rate 11
C10: GDP-IPI
C11: Less Productivity
C12: Less Stretch Factor
C13: Incentive Rate Adjustment | E13: ='D1.1 Rate 1 Adjustment'!E13 -> 0.0200162
C14: Months / Year | E14: 12
D16: Unit | E16: Current Rate | F16: Price Cap | G16: Adjusted Rates | H16: Billing Determinants | I16: Revenue
C17: Monthly Base | D17: $/month | E17: =INDEX('B1.1 Current Distribution Rates'!$E$10:$Q$13,MATCH($C$8,'B1.1 Current Distribution Rates'!$C$10:$C$13,0),MATCH(C17,'B1.1 Current Distribution Rates'!$E$8:$Q$8,0)) -> 223.864108 | F17: =$E$13 -> 0.0200162 | G17: =E17*(1+F17) -> 228.3450168 | H17: =INDEX('B1.2 Billing Determinants'!$E$9:$J$12,MATCH($C$8,'B1.2 Billing Determinants'!$C$9:$C$12,0),MATCH(C17,'B1.2 Billing Determinants'!$E$8:$J$8,0)) -> 9 | I17: =G17*H17*12 -> 24661.26181
C18: =OneDollar -> Bill 32 Rate | D18: $/month | E18: =INDEX('B1.1 Current Distribution Rates'!$E$10:$Q$13,MATCH($C$8,'B1.1 Current Distribution Rates'!$C$10:$C$13,0),MATCH(C18,'B1.1 Current Distribution Rates'!$E$8:$Q$8,0)) -> 1 | F18: 0 | G18: =E18*(1+F18) -> 1 | H18: =H17 -> 9 | I18: =G18*H18*12 -> 108
C19: Tier 1 | D19: cents / m3 | E19: =INDEX('B1.1 Current Distribution Rates'!$E$10:$Q$13,MATCH($C$8,'B1.1 Current Distribution Rates'!$C$10:$C$13,0),MATCH(C19,'B1.1 Current Distribution Rates'!$E$8:$Q$8,0)) -> 16.84949564 | F19: =$E$13 -> 0.0200162 | G19: 17.18675851 | H19: =INDEX('B1.2 Billing Determinants'!$E$9:$J$12,MATCH($C$8,'B1.2 Billing Determinants'!$C$9:$C$12,0),MATCH(C19,'B1.2 Billing Determinants'!$E$8:$J$8,0)) -> 0 | I19: =G19*H19/100 -> 0
C20: Tier 2 | D20: cents / m3 | E20: =INDEX('B1.1 Current Distribution Rates'!$E$10:$Q$13,MATCH($C$8,'B1.1 Current Distribution Rates'!$C$10:$C$13,0),MATCH(C20,'B1.1 Current Distribution Rates'!$E$8:$Q$8,0)) -> 16.84949564 | F20: =$E$13 -> 0.0200162 | G20: 17.18675851 | H20: =INDEX('B1.2 Billing Determinants'!$E$9:$J$12,MATCH($C$8,'B1.2 Billing Determinants'!$C$9:$C$12,0),MATCH(C20,'B1.2 Billing Determinants'!$E$8:$J$8,0)) -> 0 | I20: =G20*H20/100 -> 0
C21: Tier 3 | D21: cents / m3 | E21: =INDEX('B1.1 Current Distribution Rates'!$E$10:$Q$13,MATCH($C$8,'B1.1 Current Distribution Rates'!$C$10:$C$13,0),MATCH(C21,'B1.1 Current Distribution Rates'!$E$8:$Q$8,0)) -> 16.84949564 | F21: =$E$13 -> 0.0200162 | G21: 17.18675851 | H21: =INDEX('B1.2 Billing Determinants'!$E$9:$J$12,MATCH($C$8,'B1.2 Billing Determinants'!$C$9:$C$12,0),MATCH(C21,'B1.2 Billing Determinants'!$E$8:$J$8,0)) -> 1431902 | I21: 246097.5389
C22: Contract Demand | D22: cents / m3 | E22: =INDEX('B1.1 Current Distribution Rates'!$E$10:$Q$13,MATCH($C$8,'B1.1 Current Distribution Rates'!$C$10:$C$13,0),MATCH(C22,'B1.1 Current Distribution Rates'!$E$8:$Q$8,0)) -> 0 | F22: =$E$13 -> 0.0200162 | G22: 0 | H22: =INDEX('B1.2 Billing Determinants'!$E$9:$J$12,MATCH($C$8,'B1.2 Billing Determinants'!$C$9:$C$12,0),MATCH(C22,'B1.2 Billing Determinants'!$E$8:$J$8,0)) -> 0 | I22: =G22*H22/100*12 -> 0
C23: Gas Supply | D23: cents / m3 | E23: =INDEX('B1.1 Current Distribution Rates'!$E$10:$Q$13,MATCH($C$8,'B1.1 Current Distribution Rates'!$C$10:$C$13,0),MATCH(C23,'B1.1 Current Distribution Rates'!$E$8:$Q$8,0)) -> 12.9848 | F23: 0 | G23: 12.9848 | H23: =INDEX('B1.2 Billing Determinants'!$E$9:$J$12,MATCH($C$8,'B1.2 Billing Determinants'!$C$9:$C$12,0),MATCH(C23,'B1.2 Billing Determinants'!$E$8:$J$8,0)) -> 1431902 | I23: 185929.6109
C24: Upstream Recovery Charge | D24: cents / m3 | E24: =INDEX('B1.1 Current Distribution Rates'!$E$10:$Q$13,MATCH($C$8,'B1.1 Current Distribution Rates'!$C$10:$C$13,0),MATCH(C24,'B1.1 Current Distribution Rates'!$E$8:$Q$8,0)) -> 0.0352 | F24: 0 | G24: 0.0352 | H24: =H23 -> 1431902 | I24: 504.029504
C25: Transportation & Storage Charge | D25: cents / m3 | E25: =INDEX('B1.1 Current Distribution Rates'!$E$10:$Q$13,MATCH($C$8,'B1.1 Current Distribution Rates'!$C$10:$C$13,0),MATCH(C25,'B1.1 Current Distribution Rates'!$E$8:$Q$8,0)) -> 1.8166 | F25: ='D1.1 Rate 1 Adjustment'!$F$25 -> 0 | G25: 1.8166 | H25: =H24 -> 1431902 | I25: 26011.93173
C26: Federal Carbon Charge | D26: cents / m3 | E26: =INDEX('B1.1 Current Distribution Rates'!$E$10:$Q$13,MATCH($C$8,'B1.1 Current Distribution Rates'!$C$10:$C$13,0),MATCH(C26,'B1.1 Current Distribution Rates'!$E$8:$Q$8,0)) -> 15.25 | F26: 0 | G26: 15.25 | H26: =H25 -> 1431902 | I26: 218365.055
I27: =SUM(I17:I26) -> 701677.4278

Sheet D1.4 Rate 16 Adjustment
C2: ='A1.1 Distributor Information'!C3 -> EPCOR Natural Gas Limited Partnership
C3: ='A1.1 Distributor Information'!C4 -> OEB Application Number: EB-2024-0238 Exhibit A - 2025 Custom Incentive Application
C5: Rate 16 Incentive Rate Adjustment
C6: =MID(CELL("filename",A1),FIND("]",CELL("filename",A1))+1,255) -> D1.4 Rate 16 Adjustment
C8: Rate 16
C10: GDP-IPI
C11: Less Productivity
C12: Less Stretch Factor
C13: Incentive Rate Adjustment | E13: ='D1.1 Rate 1 Adjustment'!E13 -> 0.0200162
C14: Months / Year | E14: 12
D16: Unit | E16: Current Rate | F16: Price Cap | G16: Adjusted Rates | H16: Billing Determinants | I16: Revenue
C17: Monthly Base | D17: $/month | E17: =INDEX('B1.1 Current Distribution Rates'!$E$10:$Q$13,MATCH($C$8,'B1.1 Current Distribution Rates'!$C$10:$C$13,0),MATCH(C17,'B1.1 Current Distribution Rates'!$E$8:$Q$8,0)) -> 1646.034926 | F17: =$E$13 -> 0.0200162 | G17: =E17*(1+F17) -> 1678.98229 | H17: =INDEX('B1.2 Billing Determinants'!$E$9:$J$12,MATCH($C$8,'B1.2 Billing Determinants'!$C$9:$C$12,0),MATCH(C17,'B1.2 Billing Determinants'!$E$8:$J$8,0)) -> 3 | I17: =G17*H17*$E$14 -> 60443.36245
C18: =OneDollar -> Bill 32 Rate | D18: $/month | E18: =INDEX('B1.1 Current Distribution Rates'!$E$10:$Q$13,MATCH($C$8,'B1.1 Current Distribution Rates'!$C$10:$C$13,0),MATCH(C18,'B1.1 Current Distribution Rates'!$E$8:$Q$8,0)) -> 1 | F18: 0 | G18: =E18*(1+F18) -> 1 | H18: =H17 -> 3 | I18: =G18*H18*$E$14 -> 36
C19: Tier 1 | D19: cents / m3 | E19: =INDEX('B1.1 Current Distribution Rates'!$E$10:$Q$13,MATCH($C$8,'B1.1 Current Distribution Rates'!$C$10:$C$13,0),MATCH(C19,'B1.1 Current Distribution Rates'!$E$8:$Q$8,0)) -> 0 | F19: 0.0200162 | G19: 0 | H19: =INDEX('B1.2 Billing Determinants'!$E$9:$J$12,MATCH($C$8,'B1.2 Billing Determinants'!$C$9:$C$12,0),MATCH(C19,'B1.2 Billing Determinants'!$E$8:$J$8,0)) -> 0 | I19: =G19*H19/100 -> 0
C20: Tier 2 | D20: cents / m3 | E20: =INDEX('B1.1 Current Distribution Rates'!$E$10:$Q$13,MATCH($C$8,'B1.1 Current Distribution Rates'!$C$10:$C$13,0),MATCH(C20,'B1.1 Current Distribution Rates'!$E$8:$Q$8,0)) -> 0 | F20: 0.0200162 | G20: 0 | H20: =INDEX('B1.2 Billing Determinants'!$E$9:$J$12,MATCH($C$8,'B1.2 Billing Determinants'!$C$9:$C$12,0),MATCH(C20,'B1.2 Billing Determinants'!$E$8:$J$8,0)) -> 0 | I20: =G20*H20/100 -> 0
C21: Tier 3 | D21: cents / m3 | E21: =INDEX('B1.1 Current Distribution Rates'!$E$10:$Q$13,MATCH($C$8,'B1.1 Current Distribution Rates'!$C$10:$C$13,0),MATCH(C21,'B1.1 Current Distribution Rates'!$E$8:$Q$8,0)) -> 0 | F21: 0.0200162 | G21: 0 | H21: =INDEX('B1.2 Billing Determinants'!$E$9:$J$12,MATCH($C$8,'B1.2 Billing Determinants'!$C$9:$C$12,0),MATCH(C21,'B1.2 Billing Determinants'!$E$8:$J$8,0)) -> 0 | I21: =G21*H21/100 -> 0
C22: Contract Demand | D22: Cents/contracted demand m3 | E22: =INDEX('B1.1 Current Distribution Rates'!$E$10:$Q$13,MATCH($C$8,'B1.1 Current Distribution Rates'!$C$10:$C$13,0),MATCH(C22,'B1.1 Current Distribution Rates'!$E$8:$Q$8,0)) -> 112.275027 | F22: 0.0200162 | G22: 114.5223464 | H22: =INDEX('B1.2 Billing Determinants'!$E$9:$J$12,MATCH($C$8,'B1.2 Billing Determinants'!$C$9:$C$12,0),MATCH(C22,'B1.2 Billing Determinants'!$E$8:$J$8,0)) -> 95824 | I22: =G22*H22/100*$E$14 -> 1316878.719
C23: Gas Supply | D23: cents / m3 | E23: =INDEX('B1.1 Current Distribution Rates'!$E$10:$Q$13,MATCH($C$8,'B1.1 Current Distribution Rates'!$C$10:$C$13,0),MATCH(C23,'B1.1 Current Distribution Rates'!$E$8:$Q$8,0)) -> 0 | F23: 0 | G23: 0 | H23: =INDEX('B1.2 Billing Determinants'!$E$9:$J$12,MATCH($C$8,'B1.2 Billing Determinants'!$C$9:$C$12,0),MATCH(C23,'B1.2 Billing Determinants'!$E$8:$J$8,0)) -> 0 | I23: =G23*H23/100 -> 0
C24: Upstream Recovery Charge | D24: Cents/contracted demand m3 | E24: =INDEX('B1.1 Current Distribution Rates'!$E$10:$Q$13,MATCH($C$8,'B1.1 Current Distribution Rates'!$C$10:$C$13,0),MATCH(C24,'B1.1 Current Distribution Rates'!$E$8:$Q$8,0)) -> 14.2434 | F24: 0 | G24: 14.2434 | H24: =H22 -> 95824 | I24: =G24*H24/100*$E$14 -> 163783.1474
C25: Transportation Charge From Dawn | D25: Cents/contracted demand m3 | E25: =INDEX('B1.1 Current Distribution Rates'!$E$10:$Q$13,MATCH($C$8,'B1.1 Current Distribution Rates'!$C$10:$C$13,0),MATCH(C25,'B1.1 Current Distribution Rates'!$E$8:$Q$8,0)) -> 18.2999 | F25: ='D1.1 Rate 1 Adjustment'!$F$25 -> 0 | G25: 18.2999 | H25: =H24 -> 95824 | I25: =G25*H25/100*$E$14 -> 210428.3541
C26: Transportation Charge From Kirkwall | D26: Cents/contracted demand m3 | E26: =INDEX('B1.1 Current Distribution Rates'!$E$10:$Q$13,MATCH($C$8,'B1.1 Current Distribution Rates'!$C$10:$C$13,0),MATCH(C26,'B1.1 Current Distribution Rates'!$E$8:$Q$8,0)) -> 11.848 | F26: ='D1.1 Rate 1 Adjustment'!$F$25 -> 0 | G26: 11.848 | H26: 0 | I26: =G26*H26/100*$E$14 -> 0
C27: Transportation Charge From Parkway | D27: Cents/contracted demand m3 | E27: =INDEX('B1.1 Current Distribution Rates'!$E$10:$Q$13,MATCH($C$8,'B1.1 Current Distribution Rates'!$C$10:$C$13,0),MATCH(C27,'B1.1 Current Distribution Rates'!$E$8:$Q$8,0)) -> 11.848 | F27: ='D1.1 Rate 1 Adjustment'!$F$25 -> 0 | G27: 11.848 | H27: 0 | I27: =G27*H27/100*$E$14 -> 0
C28: Federal Carbon Charge | D28: Cents/contracted demand m3 | E28: =INDEX('B1.1 Current Distribution Rates'!$E$10:$Q$13,MATCH($C$8,'B1.1 Current Distribution Rates'!$C$10:$C$13,0),MATCH(C28,'B1.1 Current Distribution Rates'!$E$8:$Q$8,0)) -> 15.25 | F28: 0 | G28: 15.25 | H28: =H25 -> 95824 | I28: =G28*H28/100*$E$14 -> 175357.92
I29: =SUM(I17:I28) -> 1926927.502

Sheet E1.1 Proposed Dist Rates
C2: ='A1.1 Distributor Information'!C3 -> EPCOR Natural Gas Limited Partnership
C3: ='A1.1 Distributor Information'!C4 -> OEB Application Number: EB-2024-0238 Exhibit A - 2025 Custom Incentive Application
C5: Proposed Distribution Tariff Sheet Rates
C6: =MID(CELL("filename",A1),FIND("]",CELL("filename",A1))+1,255) -> E1.1 Proposed Dist Rates
C8: Rate Class | E8: Monthly Base | F8: =OneDollar -> Bill 32 Rate | G8: Tier 1 | H8: Tier 2 | I8: Tier 3 | J8: Contract Demand | K8: Gas Supply | L8: Upstream Recovery Charge | M8: Transportation & Storage Charge | N8: Transportation Charge From Dawn | O8: Transportation Charge From Kirkwall | P8: Transportation Charge From Parkway | Q8: Federal Carbon Charge | R8: Facililty Carbon Charge
E9: $/month | F9: $/month | G9: ₵ / m3 | H9: ₵ / m3 | I9: ₵ / m3 | J9: ₵/contracted m3 | K9: ₵/m3 | L9: (A) | M9: ₵ / m3 | N9: ₵ /contracted m3 | O9: ₵ /contracted m3 | P9: ₵ /contracted m3 | Q9: ₵ / m3 | R9: ₵ / m3
C10: Rate 1 | D10: General Firm Service | E10: =INDEX('D1.1 Rate 1 Adjustment'!$G$17:$G$26,MATCH(E$8,'D1.1 Rate 1 Adjustment'!$C$17:$C$26,0)) -> 27.99748422 | F10: =INDEX('D1.1 Rate 1 Adjustment'!$G$17:$G$26,MATCH(F$8,'D1.1 Rate 1 Adjustment'!$C$17:$C$26,0)) -> 1 | G10: =INDEX('D1.1 Rate 1 Adjustment'!$G$17:$G$26,MATCH(G$8,'D1.1 Rate 1 Adjustment'!$C$17:$C$26,0)) -> 29.99208306 | H10: =INDEX('D1.1 Rate 1 Adjustment'!$G$17:$G$26,MATCH(H$8,'D1.1 Rate 1 Adjustment'!$C$17:$C$26,0)) -> 29.40122231 | I10: =INDEX('D1.1 Rate 1 Adjustment'!$G$17:$G$26,MATCH(I$8,'D1.1 Rate 1 Adjustment'!$C$17:$C$26,0)) -> 28.5327886 | K10: =INDEX('D1.1 Rate 1 Adjustment'!$G$17:$G$26,MATCH(K$8,'D1.1 Rate 1 Adjustment'!$C$17:$C$26,0)) -> 12.9848 | L10: =INDEX('D1.1 Rate 1 Adjustment'!$G$17:$G$26,MATCH(L$8,'D1.1 Rate 1 Adjustment'!$C$17:$C$26,0)) -> 1.474 | M10: =INDEX('D1.1 Rate 1 Adjustment'!$G$17:$G$26,MATCH(M$8,'D1.1 Rate 1 Adjustment'!$C$17:$C$26,0)) -> 2.6982 | Q10: =INDEX('D1.1 Rate 1 Adjustment'!$G$17:$G$26,MATCH(Q$8,'D1.1 Rate 1 Adjustment'!$C$17:$C$26,0)) -> 15.25 | R10: 0.0011
C11: Rate 6 | D11: Large Volume General Firm Service | E11: =INDEX('D1.2 Rate 6 Adjustment'!$G$17:$G$26,MATCH(E8,'D1.2 Rate 6 Adjustment'!$C$17:$C$26,0)) -> 114.1725084 | F11: =INDEX('D1.2 Rate 6 Adjustment'!$G$17:$G$26,MATCH(F8,'D1.2 Rate 6 Adjustment'!$C$17:$C$26,0)) -> 1 | G11: =INDEX('D1.2 Rate 6 Adjustment'!$G$17:$G$26,MATCH(G8,'D1.2 Rate 6 Adjustment'!$C$17:$C$26,0)) -> 27.66842763 | H11: =INDEX('D1.2 Rate 6 Adjustment'!$G$17:$G$26,MATCH(H8,'D1.2 Rate 6 Adjustment'!$C$17:$C$26,0)) -> 24.90167885 | I11: =INDEX('D1.2 Rate 6 Adjustment'!$G$17:$G$26,MATCH(I8,'D1.2 Rate 6 Adjustment'!$C$17:$C$26,0)) -> 23.65635994 | K11: =INDEX('D1.2 Rate 6 Adjustment'!$G$17:$G$26,MATCH(K8,'D1.2 Rate 6 Adjustment'!$C$17:$C$26,0)) -> 12.9848 | L11: =INDEX('D1.2 Rate 6 Adjustment'!$G$17:$G$26,MATCH(L8,'D1.2 Rate 6 Adjustment'!$C$17:$C$26,0)) -> 2.92 | M11: =INDEX('D1.2 Rate 6 Adjustment'!$G$17:$G$26,MATCH(M8,'D1.2 Rate 6 Adjustment'!$C$17:$C$26,0)) -> 5.6413 | Q11: =INDEX('D1.2 Rate 6 Adjustment'!$G$17:$G$26,MATCH(Q8,'D1.2 Rate 6 Adjustment'!$C$17:$C$26,0)) -> 15.25 | R11: 0.0011
C12: Rate 11 | D12: Large Volume Seasonal Service | E12: =INDEX('D1.3 Rate 11 Adjustment'!$G$17:$G$26,MATCH(E8,'D1.3 Rate 11 Adjustment'!$C$17:$C$26,0)) -> 228.3450168 | F12: =INDEX('D1.3 Rate 11 Adjustment'!$G$17:$G$26,MATCH(F8,'D1.3 Rate 11 Adjustment'!$C$17:$C$26,0)) -> 1 | G12: =INDEX('D1.3 Rate 11 Adjustment'!$G$17:$G$26,MATCH(G8,'D1.3 Rate 11 Adjustment'!$C$17:$C$26,0)) -> 17.18675851 | H12: =INDEX('D1.3 Rate 11 Adjustment'!$G$17:$G$26,MATCH(H8,'D1.3 Rate 11 Adjustment'!$C$17:$C$26,0)) -> 17.18675851 | I12: =INDEX('D1.3 Rate 11 Adjustment'!$G$17:$G$26,MATCH(I8,'D1.3 Rate 11 Adjustment'!$C$17:$C$26,0)) -> 17.18675851 | K12: =INDEX('D1.3 Rate 11 Adjustment'!$G$17:$G$26,MATCH(K8,'D1.3 Rate 11 Adjustment'!$C$17:$C$26,0)) -> 12.9848 | L12: =INDEX('D1.3 Rate 11 Adjustment'!$G$17:$G$26,MATCH(L8,'D1.3 Rate 11 Adjustment'!$C$17:$C$26,0)) -> 0.0352 | M12: =INDEX('D1.3 Rate 11 Adjustment'!$G$17:$G$26,MATCH(M8,'D1.3 Rate 11 Adjustment'!$C$17:$C$26,0)) -> 1.8166 | Q12: =INDEX('D1.3 Rate 11 Adjustment'!$G$17:$G$26,MATCH(Q8,'D1.3 Rate 11 Adjustment'!$C$17:$C$26,0)) -> 15.25 | R12: 0.0011
C13: Rate 16 | D13: Contracted Firm Service | E13: =INDEX('D1.4 Rate 16 Adjustment'!$G$17:$G$28,MATCH(E8,'D1.4 Rate 16 Adjustment'!$C$17:$C$28,0)) -> 1678.98229 | F13: =INDEX('D1.4 Rate 16 Adjustment'!$G$17:$G$28,MATCH(F8,'D1.4 Rate 16 Adjustment'!$C$17:$C$28,0)) -> 1 | J13: =INDEX('D1.4 Rate 16 Adjustment'!$G$17:$G$28,MATCH(J8,'D1.4 Rate 16 Adjustment'!$C$17:$C$28,0)) -> 114.5223464 | L13: =INDEX('D1.4 Rate 16 Adjustment'!$G$17:$G$28,MATCH(L8,'D1.4 Rate 16 Adjustment'!$C$17:$C$28,0)) -> 14.2434 | N13: ='D1.4 Rate 16 Adjustment'!G25 -> 18.2999 | O13: =INDEX('D1.4 Rate 16 Adjustment'!$G$17:$G$28,MATCH(O8,'D1.4 Rate 16 Adjustment'!$C$17:$C$28,0)) -> 11.848 | P13: =INDEX('D1.4 Rate 16 Adjustment'!$G$17:$G$28,MATCH(P8,'D1.4 Rate 16 Adjustment'!$C$17:$C$28,0)) -> 11.848 | Q13: =INDEX('D1.4 Rate 16 Adjustment'!$G$17:$G$28,MATCH(Q8,'D1.4 Rate 16 Adjustment'!$C$17:$C$28,0)) -> 15.25 | R13: 0.0011
C14: (A) Rates 1, 6, and 11 all charged on cents / m3 basis. Rate 16 billed on cents / m3 of contracted demand basis

Sheet E1.2 Billing Determinants
C2: ='A1.1 Distributor Information'!C3 -> EPCOR Natural Gas Limited Partnership
C3: ='A1.1 Distributor Information'!C4 -> OEB Application Number: EB-2024-0238 Exhibit A - 2025 Custom Incentive Application
C5: Billing Determinants
C6: =MID(CELL("filename",A1),FIND("]",CELL("filename",A1))+1,255) -> E1.2 Billing Determinants
C9: Rate Class | D9: Description | E9: Base | F9: Tier 1 | G9: Tier 2 | H9: Tier 3 | I9: Firm Demand | J9: Gas Supply
E10: cx's | F10: m3 | G10: m3 | H10: m3 | I10: Contracted m3 | J10: m3
C11: Rate 1 | D11: General Firm Service | E11: =(5560+5472)/2 -> 5516 | F11: 4885012 | G11: 3296557 | H11: 89051 | J11: =SUM(F11:H11) -> 8270620
C12: Rate 6 | D12: Large Volume General Firm Service | E12: =(55+53)/2 -> 54 | F12: 525661 | G12: 1137819 | H12: 564677 | J12: =SUM(F12:H12) -> 2228157
C13: Rate 11 | D13: Large Volume Seasonal Service | E13: =(9+9)/2 -> 9 | H13: 1431902 | J13: 1431902
C14: Rate 16 | D14: Contracted Firm Service | E14: =(3+3)/2 -> 3 | I14: 95824 | J14: 0

Sheet E1.3 Proposed Rev From Rate
C2: ='A1.1 Distributor Information'!C3 -> EPCOR Natural Gas Limited Partnership
C3: ='A1.1 Distributor Information'!C4 -> OEB Application Number: EB-2024-0238 Exhibit A - 2025 Custom Incentive Application
C5: Proposed Revenue from Rates
C7: Months / Year | D7: 12
C9: Rate Class | E9: Monthly Base | F9: =OneDollar -> Bill 32 Rate | G9: Tier 1 | H9: Tier 2 | I9: Tier 3 | J9: Contracted Demand | K9: Gas Supply | L9: Upstream Recovery Charge | M9: Transportation & Storage Charge | N9: Federal Carbon Charge | O9: Total
M10: (A)
C11: Rate 1 | D11: General Firm Service | E11: ='E1.1 Proposed Dist Rates '!E10*'E1.2 Billing Determinants'!E11*$D$7 -> 1853209.475 | F11: ='E1.1 Proposed Dist Rates '!F10*'E1.2 Billing Determinants'!E11*$D$7 -> 66192 | G11: ='E1.1 Proposed Dist Rates '!G10*'E1.2 Billing Determinants'!F11/100 -> 1465116.856 | H11: ='E1.1 Proposed Dist Rates '!H10*'E1.2 Billing Determinants'!G11/100 -> 969228.0522 | I11: ='E1.1 Proposed Dist Rates '!I10*'E1.2 Billing Determinants'!H11/100 -> 25408.73357 | J11: ='E1.1 Proposed Dist Rates '!J10*'E1.2 Billing Determinants'!I11/100*$D$7 -> 0 | K11: ='E1.1 Proposed Dist Rates '!K10*'E1.2 Billing Determinants'!J11/100 -> 1073923.466 | L11: ='E1.1 Proposed Dist Rates '!L10*'E1.2 Billing Determinants'!$J11/100 -> 121908.9388 | M11: ='E1.1 Proposed Dist Rates '!M10*'E1.2 Billing Determinants'!$J11/100 -> 223157.8688 | N11: ='E1.1 Proposed Dist Rates '!Q10*'E1.2 Billing Determinants'!J11/100 -> 1261269.55 | O11: =SUM(E11:N11) -> 7059414.941
C12: Rate 6 | D12: Large Volume General Firm Service | E12: ='E1.1 Proposed Dist Rates '!E11*'E1.2 Billing Determinants'!E12*$D$7 -> 73983.78543 | F12: ='E1.1 Proposed Dist Rates '!F11*'E1.2 Billing Determinants'!E12*$D$7 -> 648 | G12: ='E1.1 Proposed Dist Rates '!G11*'E1.2 Billing Determinants'!F12/100 -> 145442.1333 | H12: ='E1.1 Proposed Dist Rates '!H11*'E1.2 Billing Determinants'!G12/100 -> 283336.0333 | I12: ='E1.1 Proposed Dist Rates '!I11*'E1.2 Billing Determinants'!H12/100 -> 133582.0236 | J12: ='E1.1 Proposed Dist Rates '!J11*'E1.2 Billing Determinants'!I12/100*$D$7 -> 0 | K12: ='E1.1 Proposed Dist Rates '!K11*'E1.2 Billing Determinants'!J12/100 -> 289321.7301 | L12: ='E1.1 Proposed Dist Rates '!L11*'E1.2 Billing Determinants'!$J12/100 -> 65062.1844 | M12: ='E1.1 Proposed Dist Rates '!M11*'E1.2 Billing Determinants'!$J12/100 -> 125697.0208 | N12: ='E1.1 Proposed Dist Rates '!Q11*'E1.2 Billing Determinants'!J12/100 -> 339793.9425 | O12: =SUM(E12:N12) -> 1456866.854
C13: Rate 11 | D13: Large Volume Seasonal Service | E13: ='E1.1 Proposed Dist Rates '!E12*'E1.2 Billing Determinants'!E13*$D$7 -> 24661.26181 | F13: ='E1.1 Proposed Dist Rates '!F12*'E1.2 Billing Determinants'!E13*$D$7 -> 108 | G13: ='E1.1 Proposed Dist Rates '!G12*'E1.2 Billing Determinants'!F13/100 -> 0 | H13: ='E1.1 Proposed Dist Rates '!H12*'E1.2 Billing Determinants'!G13/100 -> 0 | I13: ='E1.1 Proposed Dist Rates '!I12*'E1.2 Billing Determinants'!H13/100 -> 246097.5389 | J13: ='E1.1 Proposed Dist Rates '!J12*'E1.2 Billing Determinants'!I13/100*$D$7 -> 0 | K13: ='E1.1 Proposed Dist Rates '!K12*'E1.2 Billing Determinants'!J13/100 -> 185929.6109 | L13: ='E1.1 Proposed Dist Rates '!L12*'E1.2 Billing Determinants'!$J13/100 -> 504.029504 | M13: ='E1.1 Proposed Dist Rates '!M12*'E1.2 Billing Determinants'!$J13/100 -> 26011.93173 | N13: ='E1.1 Proposed Dist Rates '!Q12*'E1.2 Billing Determinants'!J13/100 -> 218365.055 | O13: =SUM(E13:N13) -> 701677.4278
C14: Rate 16 | D14: Contracted Firm Service | E14: ='E1.1 Proposed Dist Rates '!E13*'E1.2 Billing Determinants'!E14*$D$7 -> 60443.36245 | F14: ='E1.1 Proposed Dist Rates '!F13*'E1.2 Billing Determinants'!E14*$D$7 -> 36 | G14: ='E1.1 Proposed Dist Rates '!G13*'E1.2 Billing Determinants'!F14/100 -> 0 | H14: ='E1.1 Proposed Dist Rates '!H13*'E1.2 Billing Determinants'!G14/100 -> 0 | I14: ='E1.1 Proposed Dist Rates '!I13*'E1.2 Billing Determinants'!H14/100 -> 0 | J14: ='E1.1 Proposed Dist Rates '!J13*'E1.2 Billing Determinants'!I14/100*$D$7 -> 1316878.719 | K14: ='E1.1 Proposed Dist Rates '!K13*'E1.2 Billing Determinants'!J14/100 -> 0 | L14: ='E1.1 Proposed Dist Rates '!L13*'E1.2 Billing Determinants'!$I14/100*$D$7 -> 163783.1474 | M14: ='E1.1 Proposed Dist Rates '!N13*'E1.2 Billing Determinants'!$I14/100*$D$7 -> 210428.3541 | N14: ='E1.1 Proposed Dist Rates '!Q13*'E1.2 Billing Determinants'!I14/100*$D$7 -> 175357.92 | O14: =SUM(E14:N14) -> 1926927.502
C15: (A) Transportation & Storage for Rates 1, 6, and 11. Transportation only (no seasonal storage) for Rate 16 from Dawn. | N15: Proposed Revenue | O15: =SUM(O11:O14) -> 11144886.72
N16: Current Revenue | O16: ='B1.3 Current Rev From Rates'!O18 -> 11015423.45
N17: Change | O17: =O15-O16 -> 129463.2744
N18: % Change | O18: =O17/O16 -> 0.01175290945

Sheet F1.3 Proposed Rate Riders
C2: ='A1.1 Distributor Information'!C3 -> EPCOR Natural Gas Limited Partnership
C3: ='A1.1 Distributor Information'!C4 -> OEB Application Number: EB-2024-0238 Exhibit A - 2025 Custom Incentive Application
C4: F1.3 Rate Riders
C6: Delay in Revenue Recovery Rate Rider
E7: Delay in Revenue Recovery Rate Rider
C9: Rate 1 | General Firm Service | E9: 1.633 | F9: Cents/m3
C10: Rate 6 | Large Volume General Firm Service | E10: 0.909 | F10: Cents/m3
C11: Rate 11 | Large Volume Seasonal Service | E11: 0.5524 | F11: Cents/m3
C12: Rate 16 | Contracted Firm Service | E12: 0.0601 | F12: Cents/contracted demand m3/month
C15: Energy Content Variance Account (ECVA)
E16: ECVA Rate Rider
C18: Rate 1 | General Firm Service | E18: 0.2481 | F18: Cents/m3
C19: Rate 6 | Large Volume General Firm Service | E19: 0.2815 | F19: Cents/m3
C20: Rate 11 | Large Volume Seasonal Service | E20: 0.1847 | F20: Cents/m3
C21: Rate 16 | Contracted Firm Service | E21: 0 | F21: Cents/contracted demand m3
C24: Contribution in Aid of Construction Variance Account (CIACVA)
E25: CIACVA Rate Rider
C27: Rate 1 | General Firm Service | E27: 2.3088 | F27: Cents/m3
C28: Rate 6 | Large Volume General Firm Service | E28: 3.0469 | F28: Cents/m3
C29: Rate 11 | Large Volume Seasonal Service | E29: 0.5789 | F29: Cents/m3
C30: Rate 16 | Contracted Firm Service | E30: 4.7092 | F30: Cents/contracted demand m3/month
C33: Municipal Tax Variance Account (MTVA)
E34: MTVA Rate Rider
C36: Rate 1 | General Firm Service | E36: 0.50516 | F36: Cents/m3
C37: Rate 6 | Large Volume General Firm Service | E37: 0.86511 | F37: Cents/m3
C38: Rate 11 | Large Volume Seasonal Service | E38: 0.16479 | F38: Cents/m3
C39: Rate 16 | Contracted Firm Service | E39: 1.23968 | F39: Cents/contracted demand m3/month
C42: Other Revenue Deferral Account (ORDA)
E43: ORDA Rate Rider
C45: Rate 1 | General Firm Service | E45: -0.2738 | F45: Cents/m3
C46: Rate 6 | Large Volume General Firm Service | E46: -0.2291 | F46: Cents/m3
C47: Rate 11 | Large Volume Seasonal Service | E47: -0.087 | F47: Cents/m3
C48: Rate 16 | Contracted Firm Service | E48: -0.1547 | F48: Cents/contracted demand m3/month
C51: Customer Volume Variance Account (CVVA)
E52: CVVA Rate Rider
C54: Rate 1 | General Firm Service | E54: 5.37 | F54: $/Month
C55: Rate 6 | Large Volume General Firm Service | E55: -43.46 | F55: $/Month
C56: Rate 11 | Large Volume Seasonal Service
C57: Rate 16 | Contracted Firm Service

Sheet G1.1 Rate 1 Bill Impact
C2: ='A1.1 Distributor Information'!C3 -> EPCOR Natural Gas Limited Partnership
C3: ='A1.1 Distributor Information'!C4 -> OEB Application Number: EB-2024-0238 Exhibit A - 2025 Custom Incentive Application
C5: Rate 1 Delivery Bill Impact
C6: G1.1 Rate 1 Bill Impact
C8: Rate 1
C10: Rate 1 - Existing Residential | E10: Units | F10: Current Rate | H10: Proposed Rate
C12: Customer | E12: $/month | F12: =INDEX('B1.1 Current Distribution Rates'!$E$10:$Q$13,MATCH($C$8,'B1.1 Current Distribution Rates'!$C$10:$C$13,0),COUNTA('G1.1 Rate 1 Bill Impact'!$C$12:C12)) -> 27.448078 | H12: =INDEX('E1.1 Proposed Dist Rates '!$E$10:$Q$13,MATCH($C$8,'E1.1 Proposed Dist Rates '!$C$10:$C$13,0),COUNTA($C$12:C12)) -> 27.99748422
C13: =OneDollar -> Bill 32 Rate | E13: $/month | F13: =INDEX('B1.1 Current Distribution Rates'!$E$10:$Q$13,MATCH($C$8,'B1.1 Current Distribution Rates'!$C$10:$C$13,0),COUNTA('G1.1 Rate 1 Bill Impact'!$C$12:C13)) -> 1 | H13: =INDEX('E1.1 Proposed Dist Rates '!$E$10:$Q$13,MATCH($C$8,'E1.1 Proposed Dist Rates '!$C$10:$C$13,0),COUNTA($C$12:C13)) -> 1
C14: First 100 m3 | E14: ₵/m3 | F14: =INDEX('B1.1 Current Distribution Rates'!$E$10:$Q$13,MATCH($C$8,'B1.1 Current Distribution Rates'!$C$10:$C$13,0),COUNTA('G1.1 Rate 1 Bill Impact'!$C$12:C14)) -> 29.403536 | H14: =INDEX('E1.1 Proposed Dist Rates '!$E$10:$Q$13,MATCH($C$8,'E1.1 Proposed Dist Rates '!$C$10:$C$13,0),COUNTA($C$12:C14)) -> 29.99208306
C15: Next 400 m3 | E15: ₵/m3 | F15: =INDEX('B1.1 Current Distribution Rates'!$E$10:$Q$13,MATCH($C$8,'B1.1 Current Distribution Rates'!$C$10:$C$13,0),COUNTA('G1.1 Rate 1 Bill Impact'!$C$12:C15)) -> 28.82426996 | H15: =INDEX('E1.1 Proposed Dist Rates '!$E$10:$Q$13,MATCH($C$8,'E1.1 Proposed Dist Rates '!$C$10:$C$13,0),COUNTA($C$12:C15)) -> 29.40122231
C16: GT 500m3 | E16: ₵/m3 | F16: =INDEX('B1.1 Current Distribution Rates'!$E$10:$Q$13,MATCH($C$8,'B1.1 Current Distribution Rates'!$C$10:$C$13,0),COUNTA('G1.1 Rate 1 Bill Impact'!$C$12:C16)) -> 27.97287788 | H16: =INDEX('E1.1 Proposed Dist Rates '!$E$10:$Q$13,MATCH($C$8,'E1.1 Proposed Dist Rates '!$C$10:$C$13,0),COUNTA($C$12:C16)) -> 28.5327886
C17: Contracted Demand | E17: ₵ / contracted m3 | F17: =INDEX('B1.1 Current Distribution Rates'!$E$10:$Q$13,MATCH($C$8,'B1.1 Current Distribution Rates'!$C$10:$C$13,0),COUNTA('G1.1 Rate 1 Bill Impact'!$C$12:C17)) -> 0 | H17: =INDEX('E1.1 Proposed Dist Rates '!$E$10:$Q$13,MATCH($C$8,'E1.1 Proposed Dist Rates '!$C$10:$C$13,0),COUNTA($C$12:C17)) -> 0
C18: Gas Supply | E18: ₵/m3 | F18: =INDEX('B1.1 Current Distribution Rates'!$E$10:$Q$13,MATCH($C$8,'B1.1 Current Distribution Rates'!$C$10:$C$13,0),COUNTA('G1.1 Rate 1 Bill Impact'!$C$12:C18)) -> 12.9848 | H18: =INDEX('E1.1 Proposed Dist Rates '!$E$10:$Q$13,MATCH($C$8,'E1.1 Proposed Dist Rates '!$C$10:$C$13,0),COUNTA($C$12:C18)) -> 12.9848
C19: Upstream Recovery Charge | E19: $/m3 | F19: =INDEX('B1.1 Current Distribution Rates'!$E$10:$Q$13,MATCH($C$8,'B1.1 Current Distribution Rates'!$C$10:$C$13,0),COUNTA('G1.1 Rate 1 Bill Impact'!$C$12:C19)) -> 1.474 | H19: =INDEX('E1.1 Proposed Dist Rates '!$E$10:$Q$13,MATCH($C$8,'E1.1 Proposed Dist Rates '!$C$10:$C$13,0),COUNTA($C$12:C19)) -> 1.474
C20: Transportation & Storage Charge | E20: ₵/m3 | F20: =INDEX('B1.1 Current Distribution Rates'!$E$10:$Q$13,MATCH($C$8,'B1.1 Current Distribution Rates'!$C$10:$C$13,0),COUNTA('G1.1 Rate 1 Bill Impact'!$C$12:C20)) -> 2.6982 | H20: =INDEX('E1.1 Proposed Dist Rates '!$E$10:$Q$13,MATCH($C$8,'E1.1 Proposed Dist Rates '!$C$10:$C$13,0),COUNTA($C$12:C20)) -> 2.6982
C21: Federal Carbon Charge | E21: ₵/m3 | F21: ='B1.1 Current Distribution Rates'!Q10 -> 15.25 | H21: ='E1.1 Proposed Dist Rates '!Q10 -> 15.25
C23: Rate Riders
C24: Delay in Revenue Recovery Rate Rider | E24: ₵/m3 | F24: ='C1.1 Current Rate Riders'!$E$10 -> 1.633 | H24: ='F1.3 Proposed Rate Riders'!$E$9 -> 1.633
C25: ='F1.3 Proposed Rate Riders'!$E$16 -> ECVA Rate Rider | E25: ₵/m3 | F25: ='C1.1 Current Rate Riders'!$E$19 -> 0.1727480446 | H25: ='F1.3 Proposed Rate Riders'!$E$18 -> 0.2481
C26: ='F1.3 Proposed Rate Riders'!$E$25 -> CIACVA Rate Rider | E26: ₵/m3 | F26: ='C1.1 Current Rate Riders'!$E$28 -> 2.332724695 | H26: ='F1.3 Proposed Rate Riders'!$E$27 -> 2.3088
C27: ='F1.3 Proposed Rate Riders'!$E$34 -> MTVA Rate Rider | E27: ₵/m3 | F27: ='C1.1 Current Rate Riders'!$E$37 -> -2.290601556 | H27: ='F1.3 Proposed Rate Riders'!$E$36 -> 0.50516
C28: ='F1.3 Proposed Rate Riders'!$E$43 -> ORDA Rate Rider | E28: ₵/m3 | F28: ='C1.1 Current Rate Riders'!$E$46 -> -0.08927524529 | H28: ='F1.3 Proposed Rate Riders'!$E$45 -> -0.2738
C29: ='F1.3 Proposed Rate Riders'!$E$52 -> CVVA Rate Rider | E29: $/month | F29: 0 | H29: ='F1.3 Proposed Rate Riders'!$E$54 -> 5.37
C31: Delivery | E31: Metric | F31: Current Rate | H31: Proposed Rate | J31: Change $ | L31: Change %
C32: Customer | E32: 12 | F32: =F12*$E32 -> 329.376936 | H32: =H12*$E32 -> 335.9698106 | J32: =H32-F32 -> 6.592874626 | L32: =J32/F32 -> 0.0200162
C33: =OneDollar -> Bill 32 Rate | E33: 12 | F33: =F13*$E33 -> 12 | H33: =H13*$E33 -> 12 | J33: =H33-F33 -> 0 | L33: =J33/F33 -> 0
C34: First 100 m3 | E34: 1001.316053 | F34: =F14*$E34/100 -> 294.422326 | H34: =H14*$E34/100 -> 300.3155422 | J34: =H34-F34 -> 5.893216163 | L34: =J34/F34 -> 0.0200162
C35: Next 400 m3 | E35: 1147.683947 | F35: 330.8115192 | H35: 337.4331088 | J35: 6.621589531 | L35: 0.0200162
C36: GT 500m3 | E36: 0 | F36: 0 | H36: 0 | J36: 0
C37: Contracted Demand | E37: 0 | F37: 0 | H37: 0 | J37: 0
C38: Gas Supply | E38: =SUM(E34:E37) -> 2149 | F38: 279.043352 | H38: 279.043352 | J38: 0 | L38: 0
C39: Upstream Recovery Charge | E39: =E38 -> 2149 | F39: 31.67626 | H39: 31.67626 | J39: 0 | L39: 0
C40: Transportation & Storage Charge | E40: =E39 -> 2149 | F40: 57.984318 | H40: 57.984318 | J40: 0 | L40: 0
C41: Federal Carbon Charge | E41: =E38 -> 2149 | F41: 327.7225 | H41: 327.7225 | J41: 0 | L41: 0
C42: Total Delivery | F42: =SUM(F32:F41) -> 1663.037211 | H42: =SUM(H32:H41) -> 1682.144892 | J42: =SUM(J32:J41) -> 19.10768032 | L42: =J42/F42 -> 0.01148962885
C44: Rate Riders | E44: Metric | F44: Current Rate | H44: Proposed Rate | J44: Change $ | L44: Change %
C45: =C24 -> Delay in Revenue Recovery Rate Rider | E45: =E38 -> 2149 | F45: =$E45*F24/100 -> 35.09317 | H45: =$E45*H24/100 -> 35.09317 | J45: =H45-F45 -> 0 | L45: =J45/F45 -> 0
C46: =C25 -> ECVA Rate Rider | E46: =E45 -> 2149 | F46: =$E46*F25/100 -> 3.712355478 | H46: =$E46*H25/100 -> 5.331669 | J46: =H46-F46 -> 1.619313522 | L46: =J46/F46 -> 0.436195707
C47: CIACVA Rate Rider | E47: =E45 -> 2149 | F47: 50.1302537 | H47: =$E47*H26/100 -> 49.616112 | J47: =H47-F47 -> -0.5141416978 | L47: =J47/F47 -> -0.01025611602
C48: MTVA Rate Rider | E48: =E46 -> 2149 | F48: -49.22502745 | H48: =$E48*H27/100 -> 10.8558884 | J48: 60.08091585 | L48: -1.220535954
C49: ORDA Rate Rider | E49: =E47 -> 2149 | F49: -1.918525021 | H49: =$E49*H28/100 -> -5.883962 | J49: =H49-F49 -> -3.965436979 | L49: =J49/F49 -> 2.066919605
C50: CVVA Rate Rider | E50: 12 | F50: =$E50*F29 -> 0 | H50: =$E50*H29 -> 64.44 | J50: 64.44
C51: Total Rate Riders | F51: =SUM(F45:F50) -> 37.79222671 | H51: =SUM(H45:H50) -> 159.4528774 | J51: =SUM(J45:J50) -> 121.6606507 | L51: =J51/F51 -> 3.219197737
C53: Total Bill Impact | F53: =F42+F51 -> 1700.829438 | H53: =H42+H51 -> 1841.597769 | J53: =J42+J51 -> 140.768331 | L53: =J53/F53 -> 0.0827645194
C56: Rate 1 - New Residential | E56: Units | F56: Current Rate | H56: Proposed Rate
C58: Customer | E58: $/month | F58: =F12 -> 27.448078 | H58: =H12 -> 27.99748422
C59: =OneDollar -> Bill 32 Rate | E59: $/month | F59: 1 | H59: 1
C60: First 100 m3 | E60: ₵/m3 | F60: 29.403536 | H60: 29.99208306
C61: Next 400 m3 | E61: ₵/m3 | F61: 28.82426996 | H61: 29.40122231
C62: GT 500m3 | E62: ₵/m3 | F62: 27.97287788 | H62: 28.5327886
C63: Contracted Demand | E63: ₵ / contracted m3 | F63: 0 | H63: 0
C64: Gas Supply | E64: ₵/m3 | F64: 12.9848 | H64: 12.9848
C65: Upstream Recovery Charge | E65: ₵/m3 | F65: 1.474 | H65: 1.474
C66: Transportation & Storage Charge | E66: ₵/m3 | F66: 2.6982 | H66: 2.6982
C67: Federal Carbon Charge | E67: ₵/m3 | F67: 15.25 | H67: 15.25
C69: Rate Riders
C70: =C24 -> Delay in Revenue Recovery Rate Rider | E70: ₵/m3 | F70: =F24 -> 1.633 | H70: =H24 -> 1.633
C71: =C25 -> ECVA Rate Rider | E71: ₵/m3 | F71: =F25 -> 0.1727480446 | H71: =H25 -> 0.2481
C72: CIACVA Rate Rider | E72: ₵/m3 | F72: 2.332724695 | H72: 2.3088
C73: MTVA Rate Rider | E73: ₵/m3 | F73: -2.290601556 | H73: 0.50516
C74: ORDA Rate Rider | E74: ₵/m3 | F74: -0.08927524529 | H74: -0.2738
C75: CVVA Rate Rider | E75: =E58 -> $/month | F75: 0 | H75: 5.37
C77: Delivery | E77: Metric | F77: Current Rate | H77: Proposed Rate | J77: Change $ | L77: Change %
C78: Customer | E78: 12 | F78: =F58*$E78 -> 329.376936 | H78: =H58*$E78 -> 335.9698106 | J78: =H78-F78 -> 6.592874626 | L78: =J78/F78 -> 0.0200162
C79: =OneDollar -> Bill 32 Rate | E79: =E78 -> 12 | F79: =F59*$E79 -> 12 | H79: =H59*$E79 -> 12 | J79: =H79-F79 -> 0 | L79: =J79/F79 -> 0
C80: First 100 m3 | E80: 993.1296044 | F80: =F60*$E80/100 -> 292.0152207 | H80: =H60*$E80/100 -> 297.8602558 | J80: =H80-F80 -> 5.845035062 | L80: =J80/F80 -> 0.0200162
C81: Next 400 m3 | E81: 1072.870396 | F81: 309.2470592 | H81: 315.4370101 | J81: 6.189950986 | L81: 0.0200162
C82: GT 500m3 | E82: 0 | F82: 0 | H82: 0 | J82: 0
C83: Contracted Demand | E83: 0 | F83: 0 | H83: 0 | J83: 0
C84: Gas Supply | E84: =SUM(E80:E83) -> 2066 | F84: 268.265968 | H84: 268.265968 | J84: 0 | L84: 0
C85: Upstream Recovery Charge | E85: =E84 -> 2066 | F85: 30.45284 | H85: 30.45284 | J85: 0 | L85: 0
C86: Transportation & Storage Charge | E86: =E85 -> 2066 | F86: 55.744812 | H86: 55.744812 | J86: 0 | L86: 0
C87: Federal Carbon Charge | E87: =E84 -> 2066 | F87: 315.065 | H87: 315.065 | J87: 0 | L87: 0
C88: Total Delivery | F88: =SUM(F78:F87) -> 1612.167836 | H88: =SUM(H78:H87) -> 1630.795697 | J88: =SUM(J78:J87) -> 18.62786067 | L88: =J88/F88 -> 0.01155454182
C90: Rate Riders | E90: Metric | F90: Current Rate | H90: Proposed Rate | J90: Change $ | L90: Change %
C91: =C70 -> Delay in Revenue Recovery Rate Rider | E91: =E84 -> 2066 | F91: =$E91*F70/100 -> 33.73778 | H91: =$E91*H70/100 -> 33.73778 | J91: =H91-F91 -> 0 | L91: =J91/F91 -> 0
C92: =C71 -> ECVA Rate Rider | E92: =E91 -> 2066 | F92: =$E92*F71/100 -> 3.568974601 | H92: =$E92*H71/100 -> 5.125746 | J92: =H92-F92 -> 1.556771399 | L92: =J92/F92 -> 0.436195707
C93: CIACVA Rate Rider | E93: =E91 -> 2066 | F93: 48.1940922 | H93: 47.699808 | J93: -0.4942842009 | L93: -0.01025611602
C94: MTVA Rate Rider | E94: =E92 -> 2066 | F94: -47.32382816 | H94: 10.4366056 | J94: 57.76043376 | L94: -1.220535954
C95: ORDA Rate Rider | E95: =E93 -> 2066 | F95: -1.844426568 | H95: -5.656708 | J95: -3.812281432 | L95: 2.066919605
C96: CVVA Rate Rider | E96: =E50 -> 12 | F96: =$E96*F75 -> 0 | H96: =$E96*H75 -> 64.44 | J96: 64.44
C97: Total Rate Riders | F97: =SUM(F91:F96) -> 36.33259208 | H97: =SUM(H91:H96) -> 155.7832316 | J97: =SUM(J91:J96) -> 119.4506395 | L97: =J97/F97 -> 3.287699355
C99: Total Bill Impact | F99: =F88+F97 -> 1648.500428 | H99: =H88+H97 -> 1786.578928 | J99: =J88+J97 -> 138.0785002 | L99: =J99/F99 -> 0.0837600633
C101: Rate 1 - Small Commercial | E101: Units | F101: Current Rate | H101: Proposed Rate
C103: Customer | E103: $/month | F103: =F58 -> 27.448078 | H103: =H58 -> 27.99748422
C104: =OneDollar -> Bill 32 Rate | E104: $/month | F104: 1 | H104: 1
C105: First 100 m3 | E105: ₵/m3 | F105: 29.403536 | H105: 29.99208306
C106: Next 400 m3 | E106: ₵/m3 | F106: 28.82426996 | H106: 29.40122231
C107: GT 500m3 | E107: ₵/m3 | F107: 27.97287788 | H107: 28.5327886
C108: Contracted Demand | E108: ₵ / contracted m3 | F108: 0 | H108: 0
C109: Gas Supply | E109: ₵/m3 | F109: 12.9848 | H109: 12.9848
C110: Upstream Recovery Charge | E110: ₵/m3 | F110: 1.474 | H110: 1.474
C111: Transportation & Storage Charge | E111: ₵/m3 | F111: 2.6982 | H111: 2.6982
C112: Federal Carbon Charge | E112: ₵/m3 | F112: 15.25 | H112: 15.25
C114: Rate Riders
C115: =C70 -> Delay in Revenue Recovery Rate Rider | E115: ₵/m3 | F115: =F70 -> 1.633 | H115: =H70 -> 1.633
C116: =C71 -> ECVA Rate Rider | E116: ₵/m3 | F116: =F71 -> 0.1727480446 | H116: =H71 -> 0.2481
C117: CIACVA Rate Rider | E117: ₵/m3 | F117: 2.332724695 | H117: 2.3088
C118: MTVA Rate Rider | E118: ₵/m3 | F118: -2.290601556 | H118: 0.50516
C119: ORDA Rate Rider | E119: ₵/m3 | F119: -0.08927524529 | H119: -0.2738
C120: CVVA Rate Rider | E120: ₵/m3 | F120: 0 | H120: 5.37
C122: Delivery | E122: Metric | F122: Current Rate | H122: Proposed Rate | J122: Change $ | L122: Change %
C123: Customer | E123: 12 | F123: =F103*$E123 -> 329.376936 | H123: =H103*$E123 -> 335.9698106 | J123: =H123-F123 -> 6.592874626 | L123: =J123/F123 -> 0.0200162
C124: =OneDollar -> Bill 32 Rate | E124: =E123 -> 12 | F124: =F104*$E124 -> 12 | H124: =H104*$E124 -> 12 | J124: =H124-F124 -> 0 | L124: =J124/F124 -> 0
C125: First 100 m3 | E125: 1198.170987 | F125: =F105*$E125/100 -> 352.3046374 | H125: =H105*$E125/100 -> 359.3564375 | J125: =H125-F125 -> 7.051800084 | L125: =J125/F125 -> 0.0200162
C126: Next 400 m3 | E126: 2475.004093 | F126: 713.4018612 | H126: 727.6814556 | J126: 14.27959433 | L126: 0.0200162
C127: GT 500m3 | E127: 1019.82492 | F127: 285.2743796 | H127: 290.9844886 | J127: 5.710109037 | L127: 0.0200162
C128: Contracted Demand | E128: 0 | F128: 0 | H128: 0 | J128: 0
C129: Gas Supply | E129: =SUM(E125:E128) -> 4693 | F129: 609.376664 | H129: 609.376664 | J129: 0 | L129: 0
C130: Upstream Recovery Charge | E130: =E129 -> 4693 | F130: 69.17482 | H130: 69.17482 | J130: 0 | L130: 0
C131: Transportation & Storage Charge | E131: =E130 -> 4693 | F131: 126.626526 | H131: 126.626526 | J131: 0 | L131: 0
C132: Federal Carbon Charge | E132: =E129 -> 4693 | F132: 715.6825 | H132: 715.6825 | J132: 0 | L132: 0
C133: Total Delivery | F133: =SUM(F123:F132) -> 3213.218324 | H133: =SUM(H123:H132) -> 3246.852702 | J133: =SUM(J123:J132) -> 33.63437808 | L133: =J133/F133 -> 0.01046750475
C135: Rate Riders | E135: Metric | F135: Current Rate | H135: Proposed Rate | J135: Change $ | L135: Change %
C136: =C45 -> Delay in Revenue Recovery Rate Rider | E136: =E129 -> 4693 | F136: =$E136*F115/100 -> 76.63669 | H136: =$E136*H115/100 -> 76.63669 | J136: =H136-F136 -> 0 | L136: =J136/F136 -> 0
C137: =C46 -> ECVA Rate Rider | E137: =E130 -> 4693 | F137: =$E137*F116/100 -> 8.107065732 | H137: =$E137*H116/100 -> 11.643333 | J137: =H137-F137 -> 3.536267268 | L137: =J137/F137 -> 0.436195707
C138: CIACVA Rate Rider | E138: 4693 | F138: 109.4747699 | H138: 108.351984 | J138: -1.122785941 | L138: -0.01025611602
C139: MTVA Rate Rider | E139: 4693 | F139: -107.497931 | H139: 23.7071588 | J139: 131.2050898 | L139: -1.220535954
C140: ORDA Rate Rider | E140: =E136 -> 4693 | F140: -4.189687262 | H140: -12.849434 | J140: -8.659746738 | L140: 2.066919605
C141: CVVA Rate Rider | E141: 12 | F141: =$E141*F120 -> 0 | H141: =$E141*H120 -> 64.44 | J141: 64.44
C142: Total Rate Riders | F142: =SUM(F136:F141) -> 82.53090737 | H142: =SUM(H136:H141) -> 271.9297318 | J142: =SUM(J136:J141) -> 189.3988244 | L142: =J142/F142 -> 2.294883583
C144: Total Bill Impact | F144: =F133+F142 -> 3295.749232 | H144: =H133+H142 -> 3518.782434 | J144: =J133+J142 -> 223.0332025 | L144: =J144/F144 -> 0.06767298931
C146: Rate 1 - Small Agricultural | E146: Units | F146: Current Rate | H146: Proposed Rate
C148: Customer | E148: $/month | F148: =F103 -> 27.448078 | H148: =H103 -> 27.99748422
C149: =OneDollar -> Bill 32 Rate | E149: $/month | F149: 1 | H149: 1
C150: First 100 m3 | E150: ₵/m3 | F150: =F105 -> 29.403536 | H150: =H105 -> 29.99208306
C151: Next 400 m3 | E151: ₵/m3 | F151: 28.82426996 | H151: 29.40122231
C152: GT 500m3 | E152: ₵/m3 | F152: 27.97287788 | H152: 28.5327886
C153: Contracted Demand | E153: ₵ / contracted m3 | F153: 0 | H153: 0
C154: Gas Supply | E154: ₵/m3 | F154: 12.9848 | H154: 12.9848
C155: Upstream Recovery Charge | E155: ₵/m3 | F155: 1.474 | H155: 1.474
C156: Transportation & Storage Charge | E156: ₵/m3 | F156: 2.6982 | H156: 2.6982
C157: Federal Carbon Charge | E157: ₵/m3 | F157: 15.25 | H157: 15.25
C159: Rate Riders
C160: =C24 -> Delay in Revenue Recovery Rate Rider | E160: ₵/m3 | F160: =F115 -> 1.633 | H160: =H115 -> 1.633
C161: =C25 -> ECVA Rate Rider | E161: ₵/m3 | F161: =F116 -> 0.1727480446 | H161: =H116 -> 0.2481
C162: CIACVA Rate Rider | E162: ₵/m3 | F162: 2.332724695 | H162: 2.3088
C163: MTVA Rate Rider | E163: ₵/m3 | F163: -2.290601556 | H163: 0.50516
C164: ORDA Rate Rider | E164: ₵/m3 | F164: -0.08927524529 | H164: -0.2738
C165: CVVA Rate Rider | E165: =E148 -> $/month | F165: 0 | H165: 5.37
C167: Delivery | E167: Metric | F167: Current Rate | H167: Proposed Rate | J167: Change $ | L167: Change %
C168: Customer | E168: 12 | F168: =F148*$E168 -> 329.376936 | H168: =H148*$E168 -> 335.9698106 | J168: =H168-F168 -> 6.592874626 | L168: =J168/F168 -> 0.0200162
C169: =OneDollar -> Bill 32 Rate | E169: =E168 -> 12 | F169: =F149*$E169 -> 12 | H169: =H149*$E169 -> 12 | J169: =H169-F169 -> 0 | L169: =J169/F169 -> 0
C170: First 100 m3 | E170: 1198.735789 | F170: =F150*$E170/100 -> 352.4707093 | H170: =H150*$E170/100 -> 359.5258335 | J170: =H170-F170 -> 7.055124211 | L170: =J170/F170 -> 0.0200162
C171: Next 400 m3 | E171: 2484.065484 | F171: 716.0137412 | H171: 730.3456154 | J171: 14.33187425 | L171: 0.0200162
C172: GT 500m3 | E172: 1037.198727 | F172: 290.1343332 | H172: 295.94172 | J172: 5.80738684 | L172: 0.0200162
C173: Contracted Demand | E173: 0 | F173: 0 | H173: 0 | J173: 0
C174: Commodity | E174: =SUM(E170:E173) -> 4720 | F174: 612.88256 | H174: 612.88256 | J174: 0 | L174: 0
C175: Upstream Recovery Charge | E175: =E174 -> 4720 | F175: 69.5728 | H175: 69.5728 | J175: 0 | L175: 0
C176: Transportation & Storage Charge | E176: =E175 -> 4720 | F176: 127.35504 | H176: 127.35504 | J176: 0 | L176: 0
C177: Federal Carbon Charge | E177: =E174 -> 4720 | F177: 719.8 | H177: 719.8 | J177: 0 | L177: 0
C178: Total Delivery | F178: =SUM(F168:F177) -> 3229.60612 | H178: =SUM(H168:H177) -> 3263.39338 | J178: =SUM(J168:J177) -> 33.78725992 | L178: =J178/F178 -> 0.01046172774
C180: Rate Riders | E180: Metric | F180: Current Rate | H180: Proposed Rate | J180: Change $ | L180: Change %
C181: =C136 -> Delay in Revenue Recovery Rate Rider | E181: =E174 -> 4720 | F181: =$E181*F160/100 -> 77.0776 | H181: =$E181*H160/100 -> 77.0776 | J181: =H181-F181 -> 0 | L181: =J181/F181 -> 0
C182: =C137 -> ECVA Rate Rider | E182: =E175 -> 4720 | F182: =$E182*F161/100 -> 8.153707704 | H182: =$E182*H161/100 -> 11.71032 | J182: =H182-F182 -> 3.556612296 | L182: =J182/F182 -> 0.436195707
C183: CIACVA Rate Rider | E183: 4720 | F183: 110.1046056 | H183: 108.97536 | J183: -1.129245609 | L183: -0.01025611602
C184: MTVA Rate Rider | E184: 4720 | F184: -108.1163935 | H184: 23.843552 | J184: 131.9599455 | L184: -1.220535954
C185: ORDA Rate Rider | E185: =E184 -> 4720 | F185: -4.213791578 | H185: -12.92336 | J185: -8.709568422 | L185: 2.066919605
C186: CVVA Rate Rider | E186: =E141 -> 12 | F186: =$E186*F165 -> 0 | H186: =$E186*H165 -> 64.44 | J186: 64.44
C187: Total Rate Riders | F187: =SUM(F181:F186) -> 83.00572827 | H187: =SUM(H181:H186) -> 273.123472 | J187: =SUM(J181:J186) -> 190.1177437 | L187: =J187/F187 -> 2.290417152
C189: Total Bill Impact | F189: =F178+F187 -> 3312.611848 | H189: =H178+H187 -> 3536.516852 | J189: =J178+J187 -> 223.9050037 | L189: =J189/F189 -> 0.06759168111

Sheet G1.2 Rate 6 Bill Impact
C2: ='A1.1 Distributor Information'!C3 -> EPCOR Natural Gas Limited Partnership
C3: ='A1.1 Distributor Information'!C4 -> OEB Application Number: EB-2024-0238 Exhibit A - 2025 Custom Incentive Application
C5: Rate 6 Delivery Bill Impact
C6: G1.2 Rate 6 Bill Impact
C8: Rate 6 - Medium Commercial | E8: Units | F8: Current Rate | H8: Proposed Rate
C10: Customer | E10: $/month | F10: =INDEX('B1.1 Current Distribution Rates'!$E$10:$Q$13,2,COUNTA($C$10:C10)) -> 111.932054 | H10: =INDEX('E1.1 Proposed Dist Rates '!$E$10:$Q$13,2,COUNTA($C$10:C10)) -> 114.1725084
C11: =OneDollar -> Bill 32 Rate | E11: $/month | F11: =INDEX('B1.1 Current Distribution Rates'!$E$10:$Q$13,2,COUNTA($C$10:C11)) -> 1 | H11: =INDEX('E1.1 Proposed Dist Rates '!$E$10:$Q$13,2,COUNTA($C$10:C11)) -> 1
C12: First 1000 m3 | E12: ₵/m3 | F12: =INDEX('B1.1 Current Distribution Rates'!$E$10:$Q$13,2,COUNTA($C$10:C12)) -> 27.12547862 | H12: =INDEX('E1.1 Proposed Dist Rates '!$E$10:$Q$13,2,COUNTA($C$10:C12)) -> 27.66842763
C13: Next 6000 m3 | E13: ₵/m3 | F13: =INDEX('B1.1 Current Distribution Rates'!$E$10:$Q$13,2,COUNTA($C$10:C13)) -> 24.4130229 | H13: =INDEX('E1.1 Proposed Dist Rates '!$E$10:$Q$13,2,COUNTA($C$10:C13)) -> 24.90167885
C14: GT 7000m3 | E14: ₵/m3 | F14: =INDEX('B1.1 Current Distribution Rates'!$E$10:$Q$13,2,COUNTA($C$10:C14)) -> 23.1921414 | H14: =INDEX('E1.1 Proposed Dist Rates '!$E$10:$Q$13,2,COUNTA($C$10:C14)) -> 23.65635994
C15: Contracted Demand | E15: ₵ / contracted m3 | F15: =INDEX('B1.1 Current Distribution Rates'!$E$10:$Q$13,2,COUNTA($C$10:C15)) -> 0 | H15: =INDEX('E1.1 Proposed Dist Rates '!$E$10:$Q$13,2,COUNTA($C$10:C15)) -> 0
C16: Gas Supply | E16: ₵/m3 | F16: =INDEX('B1.1 Current Distribution Rates'!$E$10:$Q$13,2,COUNTA($C$10:C16)) -> 12.9848 | H16: =INDEX('E1.1 Proposed Dist Rates '!$E$10:$Q$13,2,COUNTA($C$10:C16)) -> 12.9848
C17: Upstream Recovery Charge | E17: ₵/m3 | F17: =INDEX('B1.1 Current Distribution Rates'!$E$10:$Q$13,2,COUNTA($C$10:C17)) -> 2.92 | H17: =INDEX('E1.1 Proposed Dist Rates '!$E$10:$Q$13,2,COUNTA($C$10:C17)) -> 2.92
C18: Transportation & Storage Charge | E18: ₵/m3 | F18: =INDEX('B1.1 Current Distribution Rates'!$E$10:$Q$13,2,COUNTA($C$10:C18)) -> 5.6413 | H18: =INDEX('E1.1 Proposed Dist Rates '!$E$10:$Q$13,2,COUNTA($C$10:C18)) -> 5.6413
C19: Federal Carbon Charge | E19: ₵/m3 | F19: ='B1.1 Current Distribution Rates'!Q11 -> 15.25 | H19: ='E1.1 Proposed Dist Rates '!Q11 -> 15.25
C21: Rate Riders
C22: Delay in Revenue Recovery Rate Rider | E22: ₵/m3 | F22: ='C1.1 Current Rate Riders'!$E$11 -> 0.909 | H22: ='F1.3 Proposed Rate Riders'!$E$10 -> 0.909
C23: ='F1.3 Proposed Rate Riders'!$E$16 -> ECVA Rate Rider | E23: ₵/m3 | F23: ='C1.1 Current Rate Riders'!$E$20 -> 0.1905159726 | H23: ='F1.3 Proposed Rate Riders'!$E$19 -> 0.2815
C24: ='F1.3 Proposed Rate Riders'!$E$25 -> CIACVA Rate Rider | E24: ₵/m3 | F24: ='C1.1 Current Rate Riders'!$E$29 -> 3.129249068 | H24: ='F1.3 Proposed Rate Riders'!$E$28 -> 3.0469
C25: ='F1.3 Proposed Rate Riders'!$E$34 -> MTVA Rate Rider | E25: ₵/m3 | F25: ='C1.1 Current Rate Riders'!$E$38 -> -3.98751292 | H25: ='F1.3 Proposed Rate Riders'!$E$37 -> 0.86511
C26: ='F1.3 Proposed Rate Riders'!$E$43 -> ORDA Rate Rider | E26: ₵/m3 | F26: ='C1.1 Current Rate Riders'!$E$47 -> -0.075936582 | H26: ='F1.3 Proposed Rate Riders'!$E$46 -> -0.2291
C27: ='F1.3 Proposed Rate Riders'!$E$52 -> CVVA Rate Rider | E27: =E10 -> $/month | F27: 0 | H27: ='F1.3 Proposed Rate Riders'!$E$55 -> -43.46
C29: Delivery | E29: Metric | F29: Current Rate | H29: Proposed Rate | J29: Change $ | L29: Change %
C30: Customer | E30: 12 | F30: =F10*$E30 -> 1343.184648 | H30: =H10*$E30 -> 1370.070101 | J30: =H30-F30 -> 26.88545255 | L30: =J30/F30 -> 0.0200162
C31: =OneDollar -> Bill 32 Rate | E31: =E30 -> 12 | F31: =E31*F11 -> 12 | H31: =E31*H11 -> 12 | J31: 0 | L31: 0
C32: First 1000 m3 | E32: 9831.543338 | F32: =F12*$E32/100 -> 2666.853186 | H32: =H12*$E32/100 -> 2720.233453 | J32: 53.38026674 | L32: 0.0200162
C33: Next 6000 m3 | E33: 17101.45666 | F33: 4174.982531 | H33: 4258.549816 | J33: 83.56728534 | L33: 0.0200162
C34: GT 7000m3 | E34: 0 | F34: 0 | H34: 0 | J34: 0
C35: Contracted Demand | E35: 0 | F35: 0 | H35: 0 | J35: 0
C36: Gas Supply | E36: =SUM(E32:E35) -> 26933 | F36: 3497.196184 | H36: 3497.196184 | J36: 0 | L36: 0
C37: Upstream Recovery Charge | E37: =E36 -> 26933 | F37: 786.4436 | H37: 786.4436 | J37: 0 | L37: 0
C38: Transportation & Storage Charge | E38: =E37 -> 26933 | F38: 1519.371329 | H38: 1519.371329 | J38: 0 | L38: 0
C39: Federal Carbon Charge | E39: =E38 -> 26933 | F39: 4107.2825 | H39: 4107.2825 | J39: 0 | L39: 0
C40: Total Delivery | F40: =SUM(F30:F39) -> 18107.31398 | H40: =SUM(H30:H39) -> 18271.14698 | J40: =SUM(J30:J39) -> 163.8330046 | L40: 0.00904789108
C42: Rate Riders | E42: Metric | F42: Current Rate | H42: Proposed Rate | J42: Change $ | L42: Change %
C43: =C22 -> Delay in Revenue Recovery Rate Rider | E43: =E36 -> 26933 | F43: =$E43*F22/100 -> 244.82097 | H43: =$E43*H22/100 -> 244.82097 | J43: =H43-F43 -> 0 | L43: =J43/F43 -> 0
C44: =C23 -> ECVA Rate Rider | E44: =E43 -> 26933 | F44: =$E44*F23/100 -> 51.3116669 | H44: =$E44*H23/100 -> 75.816395 | J44: =H44-F44 -> 24.5047281 | L44: =J44/F44 -> 0.4775664013
C45: CIACVA Rate Rider | E45: =E43 -> 26933 | F45: 842.8006516 | H45: 820.621577 | J45: -22.17907459 | L45: -0.02631592008
C46: MTVA Rate Rider | E46: =E45 -> 26933 | F46: -1073.956855 | H46: 233.0000763 | J46: 1306.956931 | L46: -1.216954783
C47: ORDA Rate Rider | E47: =E44 -> 26933 | F47: -20.45199963 | H47: -61.703503 | J47: -41.25150337 | L47: 2.016991205
C48: CVVA Rate Rider | E48: =E30 -> 12 | F48: =$E48*F27 -> 0 | H48: =$E48*H27 -> -521.52 | J48: -521.52
C49: Total Rate Riders | F49: =SUM(F43:F48) -> 44.52443422 | H49: =SUM(H43:H48) -> 791.0355153 | J49: =SUM(J43:J48) -> 746.5110811 | L49: =J49/F49 -> 16.7663238
C51: Total Bill Impact | F51: =F40+F49 -> 18151.83841 | H51: =H40+H49 -> 19062.1825 | J51: =J40+J49 -> 910.3440857 | L51: =J51/F51 -> 0.05015161908
C54: Rate 6 - Large Commercial | E54: Units | F54: Current Rate | H54: Proposed Rate
C56: Customer | E56: $/month | F56: =F10 -> 111.932054 | H56: =H10 -> 114.1725084
C57: =OneDollar -> Bill 32 Rate | E57: $/month | F57: 1 | H57: 1
C58: First 1000 m3 | E58: ₵/m3 | F58: 27.12547862 | H58: 27.66842763
C59: Next 6000 m3 | E59: ₵/m3 | F59: 24.4130229 | H59: 24.90167885
C60: GT 7000m3 | E60: ₵/m3 | F60: 23.1921414 | H60: 23.65635994
C61: Contracted Demand | E61: ₵ / contracted m3 | F61: 0 | H61: 0
C62: Gas Supply | E62: ₵/m3 | F62: 12.9848 | H62: 12.9848
C63: Upstream Recovery Charge | E63: ₵/m3 | F63: 2.92 | H63: 2.92
C64: Transportation & Storage Charge | E64: ₵/m3 | F64: 5.6413 | H64: 5.6413
C65: Federal Carbon Charge | E65: ₵/m3 | F65: 15.25 | H65: 15.25
C67: Rate Riders
C68: =C22 -> Delay in Revenue Recovery Rate Rider | E68: ₵/m3 | F68: =F22 -> 0.909 | H68: =H22 -> 0.909
C69: =C23 -> ECVA Rate Rider | E69: ₵/m3 | F69: =F23 -> 0.1905159726 | H69: =H23 -> 0.2815
C70: CIACVA Rate Rider | E70: ₵/m3 | F70: 3.129249068 | H70: 3.0469
C71: MTVA Rate Rider | E71: ₵/m3 | F71: -3.98751292 | H71: 0.86511
C72: ORDA Rate Rider | E72: ₵/m3 | F72: -0.075936582 | H72: -0.2291
C73: CVVA Rate Rider | E73: $/month | F73: 0 | H73: -43.46
C75: Delivery | E75: Metric | F75: Current Rate | H75: Proposed Rate | J75: Change $ | L75: Change %
C76: Customer | E76: 12 | F76: =F56*$E76 -> 1343.184648 | H76: =H56*$E76 -> 1370.070101 | J76: =H76-F76 -> 26.88545255 | L76: =J76/F76 -> 0.0200162
C77: =OneDollar -> Bill 32 Rate | E77: 12 | F77: =E77*F57 -> 12 | H77: =E77*H57 -> 12 | J77: =H77-F77 -> 0 | L77: =J77/F77 -> 0
C78: First 1000 m3 | E78: 11715.32619 | F78: =F58*$E78/100 -> 3177.8383 | H78: =H58*$E78/100 -> 3241.446547 | J78: =H78-F78 -> 63.60824698 | L78: =J78/F78 -> 0.0200162
C79: Next 6000 m3 | E79: 40792.71842 | F79: 9958.735689 | H79: 10158.07173 | J79: 199.3360453 | L79: 0.0200162
C80: GT 7000m3 | E80: 23176.95539 | F80: 5375.232267 | H80: 5482.823991 | J80: 107.5917241 | L80: 0.0200162
C81: Contracted Demand | E81: 0 | F81: 0 | H81: 0 | J81: 0
C82: Gas Supply | E82: =SUM(E78:E81) -> 75685 | F82: 9827.54588 | H82: 9827.54588 | J82: 0 | L82: 0
C83: Upstream Recovery Charge | E83: =E82 -> 75685 | F83: 2210.002 | H83: 2210.002 | J83: 0 | L83: 0
C84: Transportation & Storage Charge | E84: =E83 -> 75685 | F84: 4269.617905 | H84: 4269.617905 | J84: 0 | L84: 0
C85: Federal Carbon Charge | E85: =E84 -> 75685 | F85: 11541.9625 | H85: 11541.9625 | J85: 0 | L85: 0
C86: Total Delivery | F86: =SUM(F76:F85) -> 47716.11919 | H86: =SUM(H76:H85) -> 48113.54066 | J86: =SUM(J76:J85) -> 397.4214689 | L86: =J86/F86 -> 0.008328872417
C88: Rate Riders | E88: Metric | F88: Current Rate | H88: Proposed Rate | J88: Change $ | L88: Change %
C89: =C43 -> Delay in Revenue Recovery Rate Rider | E89: =E82 -> 75685 | F89: =$E89*F68/100 -> 687.97665 | H89: =$E89*H68/100 -> 687.97665 | J89: =H89-F89 -> 0 | L89: =J89/F89 -> 0
C90: =C44 -> ECVA Rate Rider | E90: =E89 -> 75685 | F90: =$E90*F69/100 -> 144.1920139 | H90: =$E90*H69/100 -> 213.053275 | J90: =H90-F90 -> 68.86126115 | L90: =J90/F90 -> 0.4775664013
C91: CIACVA Rate Rider | E91: =E90 -> 75685 | F91: 2368.372157 | H91: 2306.046265 | J91: -62.32589242 | L91: -0.02631592008
C92: MTVA Rate Rider | E92: 75685 | F92: -3017.949153 | H92: 654.7585035 | J92: 3672.707657 | L92: -1.216954783
C93: ORDA Rate Rider | E93: 75685 | F93: -57.47260208 | H93: -173.394335 | J93: -115.9217329 | L93: 2.016991205
C94: CVVA Rate Rider | E94: =E48 -> 12 | F94: =$E94*F73 -> 0 | H94: =$E94*H73 -> -521.52 | J94: -521.52
C95: Total Rate Riders | F95: =SUM(F89:F94) -> 125.119066 | H95: =SUM(H89:H94) -> 3166.920359 | J95: =SUM(J89:J94) -> 3041.801293 | L95: =J95/F95 -> 24.3112532
C97: Total Bill Impact | F97: =F86+F95 -> 47841.23826 | H97: =H86+H95 -> 51280.46102 | J97: =J86+J95 -> 3439.222761 | L97: =J97/F97 -> 0.07188824719

Sheet G1.3 Rate 11 Bill Impact
C2: ='A1.1 Distributor Information'!C3 -> EPCOR Natural Gas Limited Partnership
C3: ='A1.1 Distributor Information'!C4 -> OEB Application Number: EB-2024-0238 Exhibit A - 2025 Custom Incentive Application
C5: Rate 11 Delivery Bill Impact
C6: =MID(CELL("filename",A1),FIND("]",CELL("filename",A1))+1,255) -> G1.3 Rate 11 Bill Impact
C8: Rate 11 - Large Seasonal Service Sample Dryer 1 | E8: Units | F8: Current Rate | H8: Proposed Rate
C10: Customer | E10: $/month | F10: =INDEX('B1.1 Current Distribution Rates'!$E$10:$Q$13,3,COUNTA($C10:C$10)) -> 223.864108 | H10: =INDEX('E1.1 Proposed Dist Rates '!$E$10:$Q$13,3,COUNTA($C10:C$10)) -> 228.3450168
C11: =OneDollar -> Bill 32 Rate | E11: $/month | F11: =INDEX('B1.1 Current Distribution Rates'!$E$10:$Q$13,3,COUNTA($C$10:C11)) -> 1 | H11: =INDEX('E1.1 Proposed Dist Rates '!$E$10:$Q$13,3,COUNTA($C$10:C11)) -> 1
C12: All Volumes | E12: ₵/m3 | F12: =INDEX('B1.1 Current Distribution Rates'!$E$10:$Q$13,3,COUNTA($C$10:C12)) -> 16.84949564 | H12: =INDEX('E1.1 Proposed Dist Rates '!$E$10:$Q$13,3,COUNTA($C$10:C12)) -> 17.18675851
C13: Tier 2 | E13: ₵/m3 | F13: =INDEX('B1.1 Current Distribution Rates'!$E$10:$Q$13,3,COUNTA($C$10:C13)) -> 16.84949564 | H13: =INDEX('E1.1 Proposed Dist Rates '!$E$10:$Q$13,3,COUNTA($C$10:C13)) -> 17.18675851
C14: Tier 3 | E14: ₵/m3 | F14: =INDEX('B1.1 Current Distribution Rates'!$E$10:$Q$13,3,COUNTA($C$10:C14)) -> 16.84949564 | H14: =INDEX('E1.1 Proposed Dist Rates '!$E$10:$Q$13,3,COUNTA($C$10:C14)) -> 17.18675851
C15: Contracted Demand | E15: ₵ / contracted m3 | F15: =INDEX('B1.1 Current Distribution Rates'!$E$10:$Q$13,3,COUNTA($C$10:C15)) -> 0 | H15: =INDEX('E1.1 Proposed Dist Rates '!$E$10:$Q$13,3,COUNTA($C$10:C15)) -> 0
C16: Gas Supply | E16: ₵/m3 | F16: =INDEX('B1.1 Current Distribution Rates'!$E$10:$Q$13,3,COUNTA($C$10:C16)) -> 12.9848 | H16: =INDEX('E1.1 Proposed Dist Rates '!$E$10:$Q$13,3,COUNTA($C$10:C16)) -> 12.9848
C17: Upstream Recovery Charge | E17: ₵/m3 | F17: =INDEX('B1.1 Current Distribution Rates'!$E$10:$Q$13,3,COUNTA($C$10:C17)) -> 0.0352 | H17: =INDEX('E1.1 Proposed Dist Rates '!$E$10:$Q$13,3,COUNTA($C$10:C17)) -> 0.0352
C18: Transportation & Storage Charge | E18: ₵/m3 | F18: =INDEX('B1.1 Current Distribution Rates'!$E$10:$Q$13,3,COUNTA($C$10:C18)) -> 1.8166 | H18: =INDEX('E1.1 Proposed Dist Rates '!$E$10:$Q$13,3,COUNTA($C$10:C18)) -> 1.8166
C19: Federal Carbon Charge | E19: ₵/m3 | F19: ='B1.1 Current Distribution Rates'!Q12 -> 15.25 | H19: ='E1.1 Proposed Dist Rates '!Q12 -> 15.25
C21: Rate Riders
C22: Delay in Revenue Recovery Rate Rider | E22: ₵/m3 | F22: ='C1.1 Current Rate Riders'!$E$12 -> 0.5524 | H22: ='F1.3 Proposed Rate Riders'!$E$11 -> 0.5524
C23: ='F1.3 Proposed Rate Riders'!$E$16 -> ECVA Rate Rider | E23: ₵/m3 | F23: ='C1.1 Current Rate Riders'!$E$21 -> 0.1426786493 | H23: ='F1.3 Proposed Rate Riders'!$E$20 -> 0.1847
C24: ='F1.3 Proposed Rate Riders'!$E$25 -> CIACVA Rate Rider | E24: ₵/m3 | F24: ='C1.1 Current Rate Riders'!$E$30 -> 0.6058564944 | H24: ='F1.3 Proposed Rate Riders'!$E$29 -> 0.5789
C25: ='F1.3 Proposed Rate Riders'!$E$34 -> MTVA Rate Rider | E25: ₵/m3 | F25: ='C1.1 Current Rate Riders'!$E$39 -> -0.773979515 | H25: ='F1.3 Proposed Rate Riders'!$E$38 -> 0.16479
C26: ='F1.3 Proposed Rate Riders'!$E$43 -> ORDA Rate Rider | E26: ₵/m3 | F26: ='C1.1 Current Rate Riders'!$E$48 -> -0.02938153791 | H26: ='F1.3 Proposed Rate Riders'!$E$47 -> -0.087
C27: ='F1.3 Proposed Rate Riders'!$E$52 -> CVVA Rate Rider | E27: ₵/m3 | F27: 0 | H27: ='F1.3 Proposed Rate Riders'!$E$56 -> 0
C29: Delivery | E29: Metric | F29: Current Rate | H29: Proposed Rate | J29: Change $ | L29: Change %
C30: Customer | E30: 12 | F30: =F10*$E30 -> 2686.369296 | H30: =H10*$E30 -> 2740.140201 | J30: =H30-F30 -> 53.7709051 | L30: =J30/F30 -> 0.0200162
C31: =OneDollar -> Bill 32 Rate | E31: 12 | F31: =$E31*F11 -> 12 | H31: =$E31*H11 -> 12 | J31: 0 | L31: 0
C32: All Volumes | E32: 101499.4857 | F32: =F12*$E32/100 -> 17102.15142 | H32: =H12*$E32/100 -> 17444.47151 | J32: 342.3200833 | L32: 0.0200162
C33: Tier 2 | E33: 0 | F33: 0 | H33: 0 | J33: 0
C34: Tier 3 | E34: 0 | F34: 0 | H34: 0 | J34: 0
C35: Contracted Demand | E35: 0 | F35: 0 | H35: 0 | J35: 0
C36: Gas Supply | E36: =SUM(E32:E35) -> 101499.4857 | F36: 13179.50522 | H36: 13179.50522 | J36: 0 | L36: 0
C37: Upstream Recovery Charge | E37: =E36 -> 101499.4857 | F37: 35.72781898 | H37: 35.72781898 | J37: 0 | L37: 0
C38: Transportation & Storage Charge | E38: =E37 -> 101499.4857 | F38: 1843.839658 | H38: 1843.839658 | J38: 0 | L38: 0
C39: Federal Carbon Charge | E39: =E38 -> 101499.4857 | F39: =$E39*F19/100 -> 15478.67157 | H39: =$E39*H19/100 -> 15478.67157 | J39: 0 | L39: 0
C40: Total Delivery | F40: =SUM(F30:F39) -> 50338.265 | H40: =SUM(H30:H39) -> 50734.35598 | J40: =SUM(J30:J39) -> 396.0909884 | L40: 0.007868586422
C42: Rate Riders | E42: Metric | F42: Current Rate | H42: Proposed Rate | J42: Change $ | L42: Change %
C43: =C22 -> Delay in Revenue Recovery Rate Rider | E43: =E36 -> 101499.4857 | F43: =$E43*F22/100 -> 560.6831592 | H43: =$E43*H22/100 -> 560.6831592 | J43: =H43-F43 -> 0 | L43: =J43/F43 -> 0
C44: =C23 -> ECVA Rate Rider | E44: =E37 -> 101499.4857 | F44: =$E44*F23/100 -> 144.8180953 | H44: =$E44*H23/100 -> 187.4695502 | J44: =H44-F44 -> 42.65145482 | L44: =J44/F44 -> 0.2945174408
C45: CIACVA Rate Rider | E45: 101499.4857 | F45: 614.9412261 | H45: 587.5805229 | J45: -27.36070317 | L45: -0.04449320034
C46: MTVA Rate Rider | E46: 101499.4857 | F46: -785.5852275 | H46: 167.2610025 | J46: 952.84623 | L46: -1.212912612
C47: ORDA Rate Rider | E47: =E46 -> 101499.4857 | F47: -29.82210988 | H47: -88.30455259 | J47: -58.48244271 | L47: 1.961043097
C48: CVVA Rate Rider | E48: =E47 -> 101499.4857 | F48: 0 | H48: 0 | J48: 0
C49: Total Rate Riders | F49: =SUM(F43:F48) -> 505.0351433 | H49: =SUM(H43:H48) -> 1414.689682 | J49: 909.6545389 | L49: =J49/F49 -> 1.801170772
C51: Total Bill Impact | F51: =F40+F49 -> 50843.30014 | H51: =H40+H49 -> 52149.04567 | J51: =J40+J49 -> 1305.745527 | L51: =J51/F51 -> 0.02568176188
C53: Rate 11 - Large Seasonal Service Sample Dryer 2 | E53: Units | F53: Current Rate | H53: Proposed Rate
C55: Customer | E55: $/month | F55: =F10 -> 223.864108 | H55: =H10 -> 228.3450168
C56: =OneDollar -> Bill 32 Rate | E56: $/month | F56: 1 | H56: 1
C57: All Volumes | E57: ₵/m3 | F57: =F12 -> 16.84949564 | H57: =H12 -> 17.18675851
C58: Tier 2 | E58: ₵/m3 | F58: 16.84949564 | H58: 17.18675851
C59: Tier 3 | E59: ₵/m3 | F59: 16.84949564 | H59: 17.18675851
C60: Contracted Demand | E60: ₵ / contracted m3 | F60: 0 | H60: 0
C61: Gas Supply | E61: ₵/m3 | F61: 12.9848 | H61: 12.9848
C62: Upstream Recovery Charge | E62: ₵/m3 | F62: 0.0352 | H62: 0.0352
C63: Transportation & Storage Charge | E63: ₵/m3 | F63: 1.8166 | H63: 1.8166
C64: Federal Carbon Charge | E64: ₵/m3 | F64: 12.39 | H64: =F64 -> 12.39
C66: Rate Riders
C67: =C22 -> Delay in Revenue Recovery Rate Rider | E67: ₵/m3 | F67: =F22 -> 0.5524 | H67: =H22 -> 0.5524
C68: =C23 -> ECVA Rate Rider | E68: ₵/m3 | F68: =F23 -> 0.1426786493 | H68: =H23 -> 0.1847
C69: CIACVA Rate Rider | E69: ₵/m3 | F69: 0.6058564944 | H69: 0.5789
C70: MTVA Rate Rider | E70: ₵/m3 | F70: -0.773979515 | H70: 0.16479
C71: ORDA Rate Rider | E71: ₵/m3 | F71: -0.02938153791 | H71: -0.087
C72: CVVA Rate Rider | E72: ₵/m3 | F72: 0 | H72: 0
C74: Delivery | E74: Metric | F74: Current Rate | H74: Proposed Rate | J74: Change $ | L74: Change %
C75: Customer | E75: 12 | F75: =F55*$E75 -> 2686.369296 | H75: =H55*$E75 -> 2740.140201 | J75: =H75-F75 -> 53.7709051 | L75: =J75/F75 -> 0.0200162
C76: =OneDollar -> Bill 32 Rate | E76: 12 | F76: =$E76*F56 -> 12 | H76: =$E76*H56 -> 12 | J76: =H76-F76 -> 0 | L76: =J76/F76 -> 0
C77: All Volumes | E77: 338331.6191 | F77: =F57*$E77/100 -> 57007.17141 | H77: =H57*$E77/100 -> 58148.23836 | J77: =H77-F77 -> 1141.066944 | L77: =J77/F77 -> 0.0200162
C78: Tier 2 | E78: 0 | F78: 0 | H78: 0 | J78: 0
C79: Tier 3 | E79: 0 | F79: 0 | H79: 0 | J79: 0
C80: Contracted Demand | E80: 0 | F80: 0 | H80: 0 | J80: 0
C81: Gas Supply | E81: =SUM(E77:E80) -> 338331.6191 | F81: 43931.68408 | H81: 43931.68408 | J81: 0 | L81: 0
C82: Upstream Recovery Charge | E82: =E81 -> 338331.6191 | F82: 119.0927299 | H82: 119.0927299 | J82: 0 | L82: 0
C83: Transportation & Storage Charge | E83: =E82 -> 338331.6191 | F83: 6146.132193 | H83: 6146.132193 | J83: 0 | L83: 0
C84: Federal Carbon Charge | E84: =E83 -> 338331.6191 | F84: =$E84*F64/100 -> 41919.28761 | H84: =$E84*H64/100 -> 41919.28761 | J84: 0 | L84: 0
C85: Total Delivery | F85: =SUM(F75:F84) -> 151821.7373 | H85: =SUM(H75:H84) -> 153016.5752 | J85: =SUM(J75:J84) -> 1194.83785 | L85: =J85/F85 -> 0.007870005117
C87: Rate Riders | E87: Metric | F87: Current Rate | H87: Proposed Rate | J87: Change $ | L87: Change %
C88: =C67 -> Delay in Revenue Recovery Rate Rider | E88: =E81 -> 338331.6191 | F88: =$E88*F67/100 -> 1868.943864 | H88: =$E88*H67/100 -> 1868.943864 | J88: =H88-F88 -> 0 | L88: =J88/F88 -> 0
C89: =C68 -> ECVA Rate Rider | E89: =E82 -> 338331.6191 | F89: =$E89*F68/100 -> 482.7269844 | H89: =$E89*H68/100 -> 624.8985005 | J89: =H89-F89 -> 142.1715161 | L89: =J89/F89 -> 0.2945174408
C90: CIACVA Rate Rider | E90: 338331.6191 | F90: 2049.804087 | H90: 1958.601743 | J90: -91.2023439 | L90: -0.04449320034
C91: MTVA Rate Rider | E91: 338331.6191 | F91: -2618.617425 | H91: 557.5366751 | J91: 3176.1541 | L91: -1.212912612
C92: ORDA Rate Rider | E92: =E91 -> 338331.6191 | F92: -99.40703293 | H92: -294.3485086 | J92: -194.9414757 | L92: 1.961043097
C93: CVVA Rate Rider | E93: =E92 -> 338331.6191 | F93: 0 | H93: 0 | J93: 0
C94: Total Rate Riders | F94: =SUM(F88:F93) -> 1683.450478 | H94: =SUM(H88:H93) -> 4715.632274 | J94: =SUM(J88:J93) -> 3032.181796 | L94: =J94/F94 -> 1.801170772
C96: Total Bill Impact | F96: =F85+F94 -> 153505.1878 | H96: =H85+H94 -> 157732.2074 | J96: =J85+J94 -> 4227.019646 | L96: =J96/F96 -> 0.02753665662

Sheet G1.4 Rate 16 Bill Impact
C2: ='A1.1 Distributor Information'!C3 -> EPCOR Natural Gas Limited Partnership
C3: ='A1.1 Distributor Information'!C4 -> OEB Application Number: EB-2024-0238 Exhibit A - 2025 Custom Incentive Application
C5: Rate 16 Delivery Bill Impact
C6: =MID(CELL("filename",A1),FIND("]",CELL("filename",A1))+1,255) -> G1.4 Rate 16 Bill Impact
C8: Rate 16 - Contracted Demand | E8: Units | F8: Current Rate | H8: Proposed Rate
C10: Customer | E10: $/month | F10: =INDEX('B1.1 Current Distribution Rates'!$E$10:$Q$13,4,COUNTA($C$10:C10)) -> 1646.034926 | H10: =INDEX('E1.1 Proposed Dist Rates '!$E$10:$Q$13,4,COUNTA($C$10:C10)) -> 1678.98229
C11: =OneDollar -> Bill 32 Rate | E11: $/month | F11: =INDEX('B1.1 Current Distribution Rates'!$E$10:$Q$13,4,COUNTA($C$10:C11)) -> 1 | H11: =INDEX('E1.1 Proposed Dist Rates '!$E$10:$Q$13,4,COUNTA($C$10:C11)) -> 1
C12: Tier 1 | E12: ₵/m3 | F12: =INDEX('B1.1 Current Distribution Rates'!$E$10:$Q$13,4,COUNTA($C$10:C12)) -> 0 | H12: =INDEX('E1.1 Proposed Dist Rates '!$E$10:$Q$13,4,COUNTA($C$10:C12)) -> 0
C13: Tier 2 | E13: ₵/m3 | F13: =INDEX('B1.1 Current Distribution Rates'!$E$10:$Q$13,4,COUNTA($C$10:C13)) -> 0 | H13: =INDEX('E1.1 Proposed Dist Rates '!$E$10:$Q$13,4,COUNTA($C$10:C13)) -> 0
C14: Tier 3 | E14: ₵/m3 | F14: =INDEX('B1.1 Current Distribution Rates'!$E$10:$Q$13,4,COUNTA($C$10:C14)) -> 0 | H14: =INDEX('E1.1 Proposed Dist Rates '!$E$10:$Q$13,4,COUNTA($C$10:C14)) -> 0
C15: Contracted Demand | E15: ₵ / contracted m3 | F15: =INDEX('B1.1 Current Distribution Rates'!$E$10:$Q$13,4,COUNTA($C$10:C15)) -> 112.275027 | H15: =INDEX('E1.1 Proposed Dist Rates '!$E$10:$Q$13,4,COUNTA($C$10:C15)) -> 114.5223464
C16: Gas Supply | E16: ₵/m3 | F16: =INDEX('B1.1 Current Distribution Rates'!$E$10:$Q$13,4,COUNTA($C$10:C16)) -> 0 | H16: =INDEX('E1.1 Proposed Dist Rates '!$E$10:$Q$13,4,COUNTA($C$10:C16)) -> 0
C17: Upstream Recovery Charge | E17: ₵ / contracted m3 | F17: =INDEX('B1.1 Current Distribution Rates'!$E$10:$Q$13,4,COUNTA($C$10:C17)) -> 14.2434 | H17: =INDEX('E1.1 Proposed Dist Rates '!$E$10:$Q$13,4,COUNTA($C$10:C17)) -> 14.2434
C18: Transportation Charge From Dawn | E18: ₵ / contracted m3 | F18: =INDEX('B1.1 Current Distribution Rates'!$E$10:$Q$13,4,COUNTA($C$10:C18)+1) -> 18.2999 | H18: =INDEX('E1.1 Proposed Dist Rates '!$E$10:$Q$13,4,COUNTA($C$10:C18)+1) -> 18.2999
C19: Transportation Charge From Kirkwall | E19: ₵ / contracted m3 | F19: =INDEX('B1.1 Current Distribution Rates'!$E$10:$Q$13,4,COUNTA($C$10:C19)+1) -> 11.848 | H19: =INDEX('E1.1 Proposed Dist Rates '!$E$10:$Q$13,4,COUNTA($C$10:C19)+1) -> 11.848
C20: Transportation Charge From Parkway | E20: ₵ / contracted m3 | F20: =INDEX('B1.1 Current Distribution Rates'!$E$10:$Q$13,4,COUNTA($C$10:C20)+1) -> 11.848 | H20: =INDEX('E1.1 Proposed Dist Rates '!$E$10:$Q$13,4,COUNTA($C$10:C20)+1) -> 11.848
C21: Federal Carbon Charge | E21: ₵/m3 | F21: =INDEX('B1.1 Current Distribution Rates'!$E$10:$Q$13,4,COUNTA($C$10:C21)+1) -> 15.25 | H21: =INDEX('E1.1 Proposed Dist Rates '!$E$10:$Q$13,4,COUNTA($C$10:C21)+1) -> 15.25
C23: Rate Riders
C24: Delay in Revenue Recovery Rate Rider | E24: ₵ / contracted m3 | F24: ='C1.1 Current Rate Riders'!$E$13 -> 0.0601 | H24: ='F1.3 Proposed Rate Riders'!$E$12 -> 0.0601
C25: ='F1.3 Proposed Rate Riders'!$E$16 -> ECVA Rate Rider | E25: ₵ / contracted m3 | F25: ='C1.1 Current Rate Riders'!$E$22 -> 0 | H25: ='F1.3 Proposed Rate Riders'!$E$21 -> 0
C26: ='F1.3 Proposed Rate Riders'!$E$25 -> CIACVA Rate Rider | E26: ₵ / contracted m3 | F26: ='C1.1 Current Rate Riders'!$E$31 -> 4.772141704 | H26: ='F1.3 Proposed Rate Riders'!$E$30 -> 4.7092
C27: ='F1.3 Proposed Rate Riders'!$E$34 -> MTVA Rate Rider | E27: ₵ / contracted m3 | F27: ='C1.1 Current Rate Riders'!$E$40 -> -5.637952998 | H27: ='F1.3 Proposed Rate Riders'!$E$39 -> 1.23968
C28: ='F1.3 Proposed Rate Riders'!$E$43 -> ORDA Rate Rider | E28: ₵ / contracted m3 | F28: ='C1.1 Current Rate Riders'!$E$49 -> -0.05058594256 | H28: ='F1.3 Proposed Rate Riders'!$E$48 -> -0.1547
C29: ='F1.3 Proposed Rate Riders'!$E$52 -> CVVA Rate Rider | E29: ₵ / contracted m3 | F29: 0 | H29: ='F1.3 Proposed Rate Riders'!$E$57 -> 0
C31: Delivery | E31: Metric | F31: Current Rate | H31: Proposed Rate | J31: Change $ | L31: Change %
C32: Customer | E32: 12 | F32: =F10*$E32 -> 19752.41911 | H32: =H10*$E32 -> 20147.78748 | J32: =H32-F32 -> 395.3683714 | L32: =J32/F32 -> 0.0200162
C33: =OneDollar -> Bill 32 Rate | E33: =E32 -> 12 | F33: =$E33*F11 -> 12 | H33: =$E33*H11 -> 12 | J33: 0 | L33: 0
C34: Tier 1 | E34: 0 | F34: =F12*$E34/100 -> 0 | H34: =H12*$E34/100 -> 0 | J34: 0
C35: Tier 2 | E35: 0 | F35: =F13*$E35/100 -> 0 | H35: =H13*$E35/100 -> 0 | J35: 0
C36: Tier 3 | E36: 0 | F36: =F14*$E36/100 -> 0 | H36: =H14*$E36/100 -> 0 | J36: 0
C37: Contracted Demand | E37: 50000 | F37: =F15*$E37/100*$E$32 -> 673650.162 | H37: =H15*$E37/100*$E$32 -> 687134.0784 | J37: 13483.91637 | L37: 0.0200162
C38: Gas Supply | E38: 0 | F38: =F16*$E38/100 -> 0 | H38: =H16*$E38/100 -> 0 | J38: 0
C39: Upstream Recovery Charge | E39: =$E$37 -> 50000 | F39: =F17*$E39/100*$E$32 -> 85460.4 | H39: =H17*$E39/100*$E$32 -> 85460.4 | J39: 0 | L39: 0
C40: Transportation Charge From Dawn | E40: =$E$37 -> 50000 | F40: =F18*$E40/100*$E$32 -> 109799.4 | H40: =H18*$E40/100*$E$32 -> 109799.4 | J40: 0 | L40: 0
C41: Transportation Charge From Kirkwall | E41: 0 | F41: =F19*$E41/100*$E$32 -> 0 | H41: =H19*$E41/100*$E$32 -> 0 | J41: 0
C42: Transportation Charge From Parkway | E42: 0 | F42: =F20*$E42/100*$E$32 -> 0 | H42: =H20*$E42/100*$E$32 -> 0 | J42: 0
C43: Federal Carbon Charge | E43: =$E$37 -> 50000 | F43: =$E43*F21/100*$E$32 -> 91500 | H43: =$E43*H21/100*$E$32 -> 91500 | J43: 0 | L43: 0
C44: Total Delivery | F44: =SUM(F32:F43) -> 980174.3811 | H44: =SUM(H32:H43) -> 994053.6659 | J44: =SUM(J32:J43) -> 13879.28474 | L44: 0.01416001582
C46: Rate Riders | E46: Metric | F46: Current Rate | H46: Proposed Rate | J46: Change $ | L46: Change %
C47: =C24 -> Delay in Revenue Recovery Rate Rider | E47: =E32 -> 12 | F47: =$E$47*$E37*$F24/100 -> 360.6 | H47: =$E$47*$E37*$H24/100 -> 360.6 | J47: =H47-F47 -> 0 | L47: =J47/F47 -> 0
C48: =C25 -> ECVA Rate Rider | E48: =E47 -> 12 | F48: =$E$47*$E38*$F25/100 -> 0 | H48: =$E$47*$E38*$H25/100 -> 0 | J48: =H48-F48 -> 0 | L48: =J48/F48 -> 
C49: CIACVA Rate Rider | E49: =E48 -> 12 | F49: 28632.85022 | H49: 28255.2 | J49: -377.6502224 | L49: -0.01318940376
C50: MTVA Rate Rider | E50: =E47 -> 12 | F50: -33827.71799 | H50: 7438.08 | J50: 41265.79799 | L50: -1.219881223
C51: ORDA Rate Rider | E51: =E48 -> 12 | F51: =$E$47*$E40*$F28/100 -> -303.5156554 | H51: =$E$47*$E40*$H28/100 -> -928.2 | J51: -624.6843446 | L51: 2.058161856
C52: CVVA Rate Rider | E52: =E51 -> 12 | F52: 0 | H52: 0 | J52: 0
C53: Total Rate Riders | F53: =SUM(F47:F52) -> -5137.783422 | G53: =SUM(G47:G52) -> 0 | H53: 35125.68 | I53: 0 | J53: 40263.46342 | L53: =J53/F53 -> -7.836738165
C55: Total Bill Impact | F55: =F44+F53 -> 975036.5977 | H55: =H44+H53 -> 1029179.346 | J55: =J44+J53 -> 54142.74817 | L55: =J55/F55 -> 0.05552893942

Sheet G1.7 Summary of Bill Impacts
C2: ='A1.1 Distributor Information'!C3 -> EPCOR Natural Gas Limited Partnership
C3: ='A1.1 Distributor Information'!C4 -> OEB Application Number: EB-2024-0238 Exhibit A - 2025 Custom Incentive Application
C5: Summary of Bill Impacts
C7: =MID(CELL("filename",A1),FIND("]",CELL("filename",A1))+1,255) -> G1.7 Summary of Bill Impacts
C8: Rate Class | E8: Fixed Charge | F8: =E8 -> Fixed Charge | G8: =OneDollar -> Bill 32 Rate | H8: Volumetric Charge | I8: =H8 -> Volumetric Charge | J8: Rate Riders | K8: =J8 -> Rate Riders | L8: Upstream Recovery Charge | M8: Transportation & Storage Charge | N8: Federal Carbon Charge Change | O8: Total | P8: =O8 -> Total | S8: Check
E9: ($/year) | F9: (%) | G9: ($/year) | H9: ($/year) | I9: (%) | J9: ($/year) | K9: (%) | L9: ($/year) | M9: ($/year) | N9: ($/year) | O9: ($/year) | P9: (%)
C10: Rate 1 | D10: Existing Residential | E10: ='G1.1 Rate 1 Bill Impact'!J32 -> 6.592874626 | F10: ='G1.1 Rate 1 Bill Impact'!L32 -> 0.0200162 | G10: ='G1.1 Rate 1 Bill Impact'!J33 -> 0 | H10: =SUM('G1.1 Rate 1 Bill Impact'!J34:J37) -> 12.51480569 | I10: =F10 -> 0.0200162 | J10: ='G1.1 Rate 1 Bill Impact'!J51 -> 121.6606507 | K10: ='G1.1 Rate 1 Bill Impact'!L51 -> 3.219197737 | L10: ='G1.1 Rate 1 Bill Impact'!J39 -> 0 | M10: ='G1.1 Rate 1 Bill Impact'!J40 -> 0 | N10: ='G1.1 Rate 1 Bill Impact'!J41 -> 0 | O10: =E10+H10+J10 -> 140.768331 | P10: ='G1.1 Rate 1 Bill Impact'!L53 -> 0.0827645194 | S10: ='G1.1 Rate 1 Bill Impact'!J53-O10 -> 0
C11: Rate 1 | D11: New Residential | E11: ='G1.1 Rate 1 Bill Impact'!J78 -> 6.592874626 | F11: ='G1.1 Rate 1 Bill Impact'!L78 -> 0.0200162 | G11: ='G1.1 Rate 1 Bill Impact'!J79 -> 0 | H11: =SUM('G1.1 Rate 1 Bill Impact'!J80:J81) -> 12.03498605 | I11: =F11 -> 0.0200162 | J11: ='G1.1 Rate 1 Bill Impact'!J97 -> 119.4506395 | K11: ='G1.1 Rate 1 Bill Impact'!L97 -> 3.287699355 | L11: ='G1.1 Rate 1 Bill Impact'!J85 -> 0 | M11: ='G1.1 Rate 1 Bill Impact'!J86 -> 0 | N11: ='G1.1 Rate 1 Bill Impact'!J87 -> 0 | O11: =E11+H11+J11 -> 138.0785002 | P11: ='G1.1 Rate 1 Bill Impact'!L99 -> 0.0837600633 | S11: ='G1.1 Rate 1 Bill Impact'!J99-O11 -> 0
C12: Rate 1 | D12: Small Commercial | E12: ='G1.1 Rate 1 Bill Impact'!J123 -> 6.592874626 | F12: ='G1.1 Rate 1 Bill Impact'!L123 -> 0.0200162 | G12: ='G1.1 Rate 1 Bill Impact'!J124 -> 0 | H12: =SUM('G1.1 Rate 1 Bill Impact'!J125:J128) -> 27.04150346 | I12: 0.0200162 | J12: ='G1.1 Rate 1 Bill Impact'!J142 -> 189.3988244 | K12: ='G1.1 Rate 1 Bill Impact'!L142 -> 2.294883583 | L12: ='G1.1 Rate 1 Bill Impact'!J130 -> 0 | M12: ='G1.1 Rate 1 Bill Impact'!J131 -> 0 | N12: ='G1.1 Rate 1 Bill Impact'!J132 -> 0 | O12: 223.0332025 | P12: ='G1.1 Rate 1 Bill Impact'!L144 -> 0.06767298931 | S12: ='G1.1 Rate 1 Bill Impact'!J144-O12 -> 0
C13: Rate 1 | D13: Small Agricultural | E13: ='G1.1 Rate 1 Bill Impact'!J168 -> 6.592874626 | F13: ='G1.1 Rate 1 Bill Impact'!L168 -> 0.0200162 | G13: ='G1.1 Rate 1 Bill Impact'!J169 -> 0 | H13: =SUM('G1.1 Rate 1 Bill Impact'!J170:J173) -> 27.1943853 | I13: 0.0200162 | J13: ='G1.1 Rate 1 Bill Impact'!J187 -> 190.1177437 | K13: ='G1.1 Rate 1 Bill Impact'!L187 -> 2.290417152 | L13: ='G1.1 Rate 1 Bill Impact'!J175 -> 0 | M13: ='G1.1 Rate 1 Bill Impact'!J176 -> 0 | N13: ='G1.1 Rate 1 Bill Impact'!J177 -> 0 | O13: 223.9050037 | P13: ='G1.1 Rate 1 Bill Impact'!L189 -> 0.06759168111 | S13: ='G1.1 Rate 1 Bill Impact'!J189-O13 -> 0
C14: Rate 6 | D14: Medium Commercial | E14: ='G1.2 Rate 6 Bill Impact'!J30 -> 26.88545255 | F14: ='G1.2 Rate 6 Bill Impact'!L30 -> 0.0200162 | G14: ='G1.2 Rate 6 Bill Impact'!J31 -> 0 | H14: =SUM('G1.2 Rate 6 Bill Impact'!J32:J35) -> 136.9475521 | I14: 0.0200162 | J14: ='G1.2 Rate 6 Bill Impact'!J49 -> 746.5110811 | K14: ='G1.2 Rate 6 Bill Impact'!L49 -> 16.7663238 | L14: ='G1.2 Rate 6 Bill Impact'!J37 -> 0 | M14: ='G1.2 Rate 6 Bill Impact'!J38 -> 0 | N14: ='G1.2 Rate 6 Bill Impact'!J39 -> 0 | O14: 910.3440857 | P14: ='G1.2 Rate 6 Bill Impact'!L51 -> 0.05015161908 | S14: ='G1.2 Rate 6 Bill Impact'!J51-O14 -> 0
C15: Rate 6 | D15: Large Commercial | E15: ='G1.2 Rate 6 Bill Impact'!J76 -> 26.88545255 | F15: ='G1.2 Rate 6 Bill Impact'!L76 -> 0.0200162 | G15: ='G1.2 Rate 6 Bill Impact'!J77 -> 0 | H15: =SUM('G1.2 Rate 6 Bill Impact'!J78:J81) -> 370.5360164 | I15: 0.0200162 | J15: ='G1.2 Rate 6 Bill Impact'!J95 -> 3041.801293 | K15: ='G1.2 Rate 6 Bill Impact'!L95 -> 24.3112532 | L15: ='G1.2 Rate 6 Bill Impact'!J83 -> 0 | M15: ='G1.2 Rate 6 Bill Impact'!J84 -> 0 | N15: ='G1.2 Rate 6 Bill Impact'!J85 -> 0 | O15: 3439.222761 | P15: ='G1.2 Rate 6 Bill Impact'!L97 -> 0.07188824719 | S15: ='G1.2 Rate 6 Bill Impact'!J97-O15 -> 0
C16: Rate 11 | D16: Sample Dryer 1 | E16: ='G1.3 Rate 11 Bill Impact'!J30 -> 53.7709051 | F16: ='G1.3 Rate 11 Bill Impact'!L30 -> 0.0200162 | G16: ='G1.3 Rate 11 Bill Impact'!J31 -> 0 | H16: =SUM('G1.3 Rate 11 Bill Impact'!J32:J35) -> 342.3200833 | I16: 0.0200162 | J16: ='G1.3 Rate 11 Bill Impact'!J49 -> 909.6545389 | K16: ='G1.3 Rate 11 Bill Impact'!L49 -> 1.801170772 | L16: ='G1.3 Rate 11 Bill Impact'!J37 -> 0 | M16: ='G1.3 Rate 11 Bill Impact'!J38 -> 0 | N16: ='G1.3 Rate 11 Bill Impact'!J39 -> 0 | O16: 1305.745527 | P16: ='G1.3 Rate 11 Bill Impact'!L51 -> 0.02568176188 | S16: ='G1.3 Rate 11 Bill Impact'!J51-O16 -> 0
C17: Rate 11 | D17: Sample Dryer 2 | E17: ='G1.3 Rate 11 Bill Impact'!J75 -> 53.7709051 | F17: ='G1.3 Rate 11 Bill Impact'!L75 -> 0.0200162 | G17: ='G1.3 Rate 11 Bill Impact'!J76 -> 0 | H17: =SUM('G1.3 Rate 11 Bill Impact'!J77:J80) -> 1141.066944 | I17: 0.0200162 | J17: ='G1.3 Rate 11 Bill Impact'!J94 -> 3032.181796 | K17: ='G1.3 Rate 11 Bill Impact'!L94 -> 1.801170772 | L17: ='G1.3 Rate 11 Bill Impact'!J82 -> 0 | M17: ='G1.3 Rate 11 Bill Impact'!J83 -> 0 | N17: ='G1.3 Rate 11 Bill Impact'!J84 -> 0 | O17: 4227.019646 | P17: ='G1.3 Rate 11 Bill Impact'!L96 -> 0.02753665662 | S17: ='G1.3 Rate 11 Bill Impact'!J96-O17 -> 0
C18: Rate 16 | D18: Contracted Demand | E18: ='G1.4 Rate 16 Bill Impact'!J32 -> 395.3683714 | F18: ='G1.4 Rate 16 Bill Impact'!L32 -> 0.0200162 | G18: ='G1.4 Rate 16 Bill Impact'!J33 -> 0 | H18: =SUM('G1.4 Rate 16 Bill Impact'!J34:J37) -> 13483.91637 | I18: 0.0200162 | J18: ='G1.4 Rate 16 Bill Impact'!J53 -> 40263.46342 | K18: ='G1.4 Rate 16 Bill Impact'!L53 -> -7.836738165 | L18: ='G1.4 Rate 16 Bill Impact'!J39 -> 0 | M18: =SUM('G1.4 Rate 16 Bill Impact'!J40:J42) -> 0 | N18: ='G1.4 Rate 16 Bill Impact'!J43 -> 0 | O18: 54142.74817 | P18: ='G1.4 Rate 16 Bill Impact'!L55 -> 0.05552893942 | S18: ='G1.4 Rate 16 Bill Impact'!J55-O18 -> 0

Sheet Staff-2
A2: ='A1.1 Distributor Information'!C3 -> EPCOR Natural Gas Limited Partnership | P2: A | Q2: B | R2: C | S2: D | T2: E | U2: F | V2: G
A3: OEB Staff-2 Bill Impacts | P3: Usage | Q3: CVVA | S3: Total Bill
P4: m3 | Q4: Fixed | R4: Variable | S4: Fixed | T4: Variable | U4: Variance $ | V4: Variance %
A5: Rate 1 Delivery Bill Impact
A6: G1.1 Rate 1 Bill Impact
A8: Rate 1
A10: Rate 1 Residential - Average Usage | C10: Units | D10: Fixed CVVA | E10: Variable CVVA | F10: Variance $ | G10: Variance % | N10: 1 | O10: Average User | P10: =C35+C36 -> 2149 | Q10: =D51 -> 64.44 | R10: =E52 -> 92.40052537 | S10: =D55 -> 1841.597769 | T10: =E55 -> 1869.558294 | U10: =R10-Q10 -> 27.96052537 | V10: =G55 -> 0.01518275372
N11: 2 | O11: Bottom 10 % | P11: =C83+C84 -> 264 | Q11: =D99 -> 64.44 | R11: =E100 -> 11.35120461 | S11: =D103 -> 588.8155163 | T11: =E103 -> 535.7267209 | U11: =R11-Q11 -> -53.08879539 | V11: -0.09016201836
A12: Customer | C12: $/month | D12: =INDEX('E1.1 Proposed Dist Rates '!$E$10:$Q$13,MATCH($A$8,'E1.1 Proposed Dist Rates '!$C$10:$C$13,0),COUNTA($A$12:A12)) -> 27.99748422 | E12: =INDEX('E1.1 Proposed Dist Rates '!$E$10:$Q$13,MATCH($A$8,'E1.1 Proposed Dist Rates '!$C$10:$C$13,0),COUNTA($A$12:B12)) -> 27.99748422 | N12: 3 | O12: Top 10 % | P12: =C131+C132 -> 3100 | Q12: =D147 -> 64.44 | R12: =E148 -> 133.2906601 | S12: =D151 -> 2472.614091 | T12: =E151 -> 2541.464751 | U12: 68.85066015 | V12: 0.0278452915
A13: =OneDollar -> Bill 32 Rate | C13: $/month | D13: =INDEX('E1.1 Proposed Dist Rates '!$E$10:$Q$13,MATCH($A$8,'E1.1 Proposed Dist Rates '!$C$10:$C$13,0),COUNTA($A$12:A13)) -> 1 | E13: =INDEX('E1.1 Proposed Dist Rates '!$E$10:$Q$13,MATCH($A$8,'E1.1 Proposed Dist Rates '!$C$10:$C$13,0),COUNTA($A$12:B13)) -> 1
A14: First 100 m3 | C14: ₵/m3 | D14: =INDEX('E1.1 Proposed Dist Rates '!$E$10:$Q$13,MATCH($A$8,'E1.1 Proposed Dist Rates '!$C$10:$C$13,0),COUNTA($A$12:A14)) -> 29.99208306 | E14: =INDEX('E1.1 Proposed Dist Rates '!$E$10:$Q$13,MATCH($A$8,'E1.1 Proposed Dist Rates '!$C$10:$C$13,0),COUNTA($A$12:B14)) -> 29.99208306
A15: Next 400 m3 | C15: ₵/m3 | D15: =INDEX('E1.1 Proposed Dist Rates '!$E$10:$Q$13,MATCH($A$8,'E1.1 Proposed Dist Rates '!$C$10:$C$13,0),COUNTA($A$12:A15)) -> 29.40122231 | E15: =INDEX('E1.1 Proposed Dist Rates '!$E$10:$Q$13,MATCH($A$8,'E1.1 Proposed Dist Rates '!$C$10:$C$13,0),COUNTA($A$12:B15)) -> 29.40122231
A16: GT 500m3 | C16: ₵/m3 | D16: =INDEX('E1.1 Proposed Dist Rates '!$E$10:$Q$13,MATCH($A$8,'E1.1 Proposed Dist Rates '!$C$10:$C$13,0),COUNTA($A$12:A16)) -> 28.5327886 | E16: =INDEX('E1.1 Proposed Dist Rates '!$E$10:$Q$13,MATCH($A$8,'E1.1 Proposed Dist Rates '!$C$10:$C$13,0),COUNTA($A$12:B16)) -> 28.5327886
A17: Contracted Demand | C17: ₵ / contracted m3 | D17: =INDEX('E1.1 Proposed Dist Rates '!$E$10:$Q$13,MATCH($A$8,'E1.1 Proposed Dist Rates '!$C$10:$C$13,0),COUNTA($A$12:A17)) -> 0 | E17: =INDEX('E1.1 Proposed Dist Rates '!$E$10:$Q$13,MATCH($A$8,'E1.1 Proposed Dist Rates '!$C$10:$C$13,0),COUNTA($A$12:B17)) -> 0
A18: Gas Supply | C18: ₵/m3 | D18: =INDEX('E1.1 Proposed Dist Rates '!$E$10:$Q$13,MATCH($A$8,'E1.1 Proposed Dist Rates '!$C$10:$C$13,0),COUNTA($A$12:A18)) -> 12.9848 | E18: =INDEX('E1.1 Proposed Dist Rates '!$E$10:$Q$13,MATCH($A$8,'E1.1 Proposed Dist Rates '!$C$10:$C$13,0),COUNTA($A$12:B18)) -> 12.9848
A19: Upstream Recovery Charge | C19: $/m3 | D19: =INDEX('E1.1 Proposed Dist Rates '!$E$10:$Q$13,MATCH($A$8,'E1.1 Proposed Dist Rates '!$C$10:$C$13,0),COUNTA($A$12:A19)) -> 1.474 | E19: =INDEX('E1.1 Proposed Dist Rates '!$E$10:$Q$13,MATCH($A$8,'E1.1 Proposed Dist Rates '!$C$10:$C$13,0),COUNTA($A$12:B19)) -> 1.474
A20: Transportation & Storage Charge | C20: ₵/m3 | D20: =INDEX('E1.1 Proposed Dist Rates '!$E$10:$Q$13,MATCH($A$8,'E1.1 Proposed Dist Rates '!$C$10:$C$13,0),COUNTA($A$12:A20)) -> 2.6982 | E20: =INDEX('E1.1 Proposed Dist Rates '!$E$10:$Q$13,MATCH($A$8,'E1.1 Proposed Dist Rates '!$C$10:$C$13,0),COUNTA($A$12:B20)) -> 2.6982
A21: Federal Carbon Charge | C21: ₵/m3 | D21: ='E1.1 Proposed Dist Rates '!$Q$10 -> 15.25 | E21: ='E1.1 Proposed Dist Rates '!$Q$10 -> 15.25
A23: Rate Riders
A24: Delay in Revenue Recovery Rate Rider | C24: ₵/m3 | D24: ='F1.3 Proposed Rate Riders'!$E$9 -> 1.633 | E24: ='F1.3 Proposed Rate Riders'!$E$9 -> 1.633
A25: ='F1.3 Proposed Rate Riders'!$E$16 -> ECVA Rate Rider | C25: ₵/m3 | D25: ='F1.3 Proposed Rate Riders'!$E$18 -> 0.2481 | E25: ='F1.3 Proposed Rate Riders'!$E$18 -> 0.2481
A26: ='F1.3 Proposed Rate Riders'!$E$25 -> CIACVA Rate Rider | C26: ₵/m3 | D26: ='F1.3 Proposed Rate Riders'!$E$27 -> 2.3088 | E26: ='F1.3 Proposed Rate Riders'!$E$27 -> 2.3088
A27: ='F1.3 Proposed Rate Riders'!$E$34 -> MTVA Rate Rider | C27: ₵/m3 | D27: ='F1.3 Proposed Rate Riders'!$E$36 -> 0.50516 | E27: ='F1.3 Proposed Rate Riders'!$E$36 -> 0.50516
A28: ='F1.3 Proposed Rate Riders'!$E$43 -> ORDA Rate Rider | C28: ₵/m3 | D28: ='F1.3 Proposed Rate Riders'!$E$45 -> -0.2738 | E28: ='F1.3 Proposed Rate Riders'!$E$45 -> -0.2738
A29: ='F1.3 Proposed Rate Riders'!$E$52 -> CVVA Rate Rider | C29: $/month | D29: ='F1.3 Proposed Rate Riders'!$E$54 -> 5.37
A30: CVVA Rate Rider - Variable | E30: ='Staff-2 CVVA Calculation'!D13 -> 4.299698714
A32: Delivery | C32: Metric
A33: Customer | C33: 12 | D33: =D12*$C33 -> 335.9698106 | E33: =E12*$C33 -> 335.9698106
A34: =OneDollar -> Bill 32 Rate | C34: 12 | D34: =D13*$C34 -> 12 | E34: =E13*$C34 -> 12
A35: First 100 m3 | C35: 1001.316053 | D35: =D14*$C35/100 -> 300.3155422 | E35: 300.3155422
A36: Next 400 m3 | C36: 1147.683947 | D36: 337.4331088 | E36: 337.4331088
A37: GT 500m3 | C37: 0 | D37: 0 | E37: 0
A38: Contracted Demand | C38: 0 | D38: 0 | E38: 0
A39: Gas Supply | C39: =SUM(C35:C38) -> 2149 | D39: 279.043352 | E39: 279.043352
A40: Upstream Recovery Charge | C40: =C39 -> 2149 | D40: 31.67626 | E40: 31.67626
A41: Transportation & Storage Charge | C41: =C40 -> 2149 | D41: 57.984318 | E41: 57.984318
A42: Federal Carbon Charge | C42: =C39 -> 2149 | D42: 327.7225 | E42: 327.7225
A43: Total Delivery | D43: =SUM(D33:D42) -> 1682.144892 | E43: =SUM(E33:E42) -> 1682.144892
A45: Rate Riders | C45: Metric | F45: Variance $ | G45: Variance %
A46: =A24 -> Delay in Revenue Recovery Rate Rider | C46: =C39 -> 2149 | D46: =$C46*D24/100 -> 35.09317 | E46: 35.09317
A47: ECVA Rate Rider | C47: =C46 -> 2149 | D47: 5.331669 | E47: 5.331669
A48: CIACVA Rate Rider | C48: =C46 -> 2149 | D48: 49.616112 | E48: 49.616112
A49: MTVA Rate Rider | C49: =C47 -> 2149 | D49: 10.8558884 | E49: 10.8558884
A50: ORDA Rate Rider | C50: =C48 -> 2149 | D50: -5.883962 | E50: -5.883962
A51: CVVA Rate Rider | C51: 12 | D51: =$C51*D29 -> 64.44 | E51: =$C51*E29 -> 0 | F51: =E51-D51 -> -64.44
A52: CVVA Rate Rider - Variable | C52: =C50 -> 2149 | D52: =$C52*D30 -> 0 | E52: =$C52*E30/100 -> 92.40052537 | F52: 92.40052537
A53: Total Rate Riders | D53: =SUM(D46:D52) -> 159.4528774 | E53: =SUM(E46:E52) -> 187.4134028 | F53: 27.96052537 | G53: =F53/D53 -> 0.1753529057
A55: Total Bill Impact | D55: =D43+D53 -> 1841.597769 | E55: =E43+E53 -> 1869.558294 | F55: 27.96052537 | G55: =F55/D55 -> 0.01518275372
A58: Rate 1 Residential - Bottom 10 Percentile | C58: Units | D58: Fixed CVVA | E58: Variable CVVA | F58: Variance $ | G58: Variance %
A60: Customer | C60: $/month | D60: =D12 -> 27.99748422 | E60: =E12 -> 27.99748422
A61: =OneDollar -> Bill 32 Rate | C61: $/month | D61: =D13 -> 1 | E61: =E13 -> 1
A62: First 100 m3 | C62: ₵/m3 | D62: 29.99208306 | E62: =E14 -> 29.99208306
A63: Next 400 m3 | C63: ₵/m3 | D63: 29.40122231 | E63: =E15 -> 29.40122231
A64: GT 500m3 | C64: ₵/m3 | D64: 28.5327886 | E64: =E16 -> 28.5327886
A65: Contracted Demand | C65: ₵ / contracted m3 | D65: 0 | E65: =E17 -> 0
A66: Gas Supply | C66: ₵/m3 | D66: 12.9848 | E66: =E18 -> 12.9848
A67: Upstream Recovery Charge | C67: $/m3 | D67: 1.474 | E67: =E19 -> 1.474
A68: Transportation & Storage Charge | C68: ₵/m3 | D68: 2.6982 | E68: =E20 -> 2.6982
A69: Federal Carbon Charge | C69: ₵/m3 | D69: 15.25 | E69: =E21 -> 15.25
A71: Rate Riders
A72: Delay in Revenue Recovery Rate Rider | C72: ₵/m3 | D72: =D24 -> 1.633 | E72: 1.633
A73: ='F1.3 Proposed Rate Riders'!$E$16 -> ECVA Rate Rider | C73: ₵/m3 | D73: =D25 -> 0.2481 | E73: 0.2481
A74: ='F1.3 Proposed Rate Riders'!$E$25 -> CIACVA Rate Rider | C74: ₵/m3 | D74: =D26 -> 2.3088 | E74: 2.3088
A75: ='F1.3 Proposed Rate Riders'!$E$34 -> MTVA Rate Rider | C75: ₵/m3 | D75: =D27 -> 0.50516 | E75: 0.50516
A76: ='F1.3 Proposed Rate Riders'!$E$43 -> ORDA Rate Rider | C76: ₵/m3 | D76: =D28 -> -0.2738 | E76: -0.2738
A77: ='F1.3 Proposed Rate Riders'!$E$52 -> CVVA Rate Rider | C77: $/month | D77: =D29 -> 5.37 | E77: 0
A78: CVVA Rate Rider - Variable | D78: =D30 -> 0 | E78: 4.299698714
A80: Delivery | C80: Metric
A81: Customer | C81: 12 | D81: =D60*$C81 -> 335.9698106 | E81: =E60*$C81 -> 335.9698106
A82: =OneDollar -> Bill 32 Rate | C82: 12 | D82: =D61*$C82 -> 12 | E82: =E61*$C82 -> 12
A83: First 100 m3 | C83: 264 | D83: =D62*$C83/100 -> 79.17909927 | E83: 79.17909927
A84: Next 400 m3 | C84: 0 | D84: 0 | E84: 0
A85: GT 500m3 | C85: 0 | D85: 0 | E85: 0
A86: Contracted Demand | C86: 0 | D86: 0 | E86: 0
A87: Gas Supply | C87: =SUM(C83:C86) -> 264 | D87: 34.279872 | E87: 34.279872
A88: Upstream Recovery Charge | C88: =C87 -> 264 | D88: 3.89136 | E88: 3.89136
A89: Transportation & Storage Charge | C89: =C88 -> 264 | D89: 7.123248 | E89: 7.123248
A90: Federal Carbon Charge | C90: =C87 -> 264 | D90: 40.26 | E90: 40.26
A91: Total Delivery | D91: =SUM(D81:D90) -> 512.7033899 | E91: =SUM(E81:E90) -> 512.7033899
A93: Rate Riders | C93: Metric | F93: Variance $ | G93: Variance %
A94: =A72 -> Delay in Revenue Recovery Rate Rider | C94: =C87 -> 264 | D94: =$C94*D72/100 -> 4.31112 | E94: 4.31112
A95: ECVA Rate Rider | C95: =C94 -> 264 | D95: 0.654984 | E95: 0.654984
A96: CIACVA Rate Rider | C96: =C94 -> 264 | D96: 6.095232 | E96: 6.095232
A97: MTVA Rate Rider | C97: =C95 -> 264 | D97: 1.3336224 | E97: 1.3336224
A98: ORDA Rate Rider | C98: =C96 -> 264 | D98: -0.722832 | E98: -0.722832
A99: CVVA Rate Rider | C99: 12 | D99: =$C99*D77 -> 64.44 | E99: =$C99*E77 -> 0 | F99: =E99-D99 -> -64.44
A100: CVVA Rate Rider - Variable | C100: =C98 -> 264 | D100: =$C100*D78 -> 0 | E100: =$C100*E78/100 -> 11.35120461 | F100: 11.35120461
A101: Total Rate Riders | D101: =SUM(D94:D100) -> 76.1121264 | E101: =SUM(E94:E100) -> 23.02333101 | F101: -53.08879539 | G101: =F101/D101 -> -0.6975077153
A103: Total Bill Impact | D103: =D91+D101 -> 588.8155163 | E103: =E91+E101 -> 535.7267209 | F103: =E103-D103 -> -53.08879539 | G103: =F103/D103 -> -0.09016201836
A106: Rate 1 Residential - Top 10 Percentile | C106: Units | D106: Fixed CVVA | E106: Variable CVVA | F106: Variance $ | G106: Variance %
A108: Customer | C108: $/month | D108: =D60 -> 27.99748422 | E108: =E60 -> 27.99748422
A109: =OneDollar -> Bill 32 Rate | C109: $/month | D109: =D61 -> 1 | E109: 1
A110: First 100 m3 | C110: ₵/m3 | D110: 29.99208306 | E110: 29.99208306
A111: Next 400 m3 | C111: ₵/m3 | D111: 29.40122231 | E111: 29.40122231
A112: GT 500m3 | C112: ₵/m3 | D112: 28.5327886 | E112: 28.5327886
A113: Contracted Demand | C113: ₵ / contracted m3 | D113: 0 | E113: 0
A114: Gas Supply | C114: ₵/m3 | D114: 12.9848 | E114: 12.9848
A115: Upstream Recovery Charge | C115: $/m3 | D115: 1.474 | E115: 1.474
A116: Transportation & Storage Charge | C116: ₵/m3 | D116: 2.6982 | E116: 2.6982
A117: Federal Carbon Charge | C117: ₵/m3 | D117: 15.25 | E117: 15.25
A119: Rate Riders
A120: Delay in Revenue Recovery Rate Rider | C120: ₵/m3 | D120: =D72 -> 1.633 | E120: 1.633
A121: ='F1.3 Proposed Rate Riders'!$E$16 -> ECVA Rate Rider | C121: ₵/m3 | D121: 0.2481 | E121: 0.2481
A122: ='F1.3 Proposed Rate Riders'!$E$25 -> CIACVA Rate Rider | C122: ₵/m3 | D122: 2.3088 | E122: 2.3088
A123: ='F1.3 Proposed Rate Riders'!$E$34 -> MTVA Rate Rider | C123: ₵/m3 | D123: 0.50516 | E123: 0.50516
A124: ='F1.3 Proposed Rate Riders'!$E$43 -> ORDA Rate Rider | C124: ₵/m3 | D124: -0.2738 | E124: -0.2738
A125: ='F1.3 Proposed Rate Riders'!$E$52 -> CVVA Rate Rider | C125: $/month | D125: 5.37 | E125: 0
A126: CVVA Rate Rider - Variable | D126: 0 | E126: 4.299698714
A128: Delivery | C128: Metric
A129: Customer | C129: 12 | D129: =D108*$C129 -> 335.9698106 | E129: =E108*$C129 -> 335.9698106
A130: =OneDollar -> Bill 32 Rate | C130: 12 | D130: =D109*$C130 -> 12 | E130: =E109*$C130 -> 12
A131: First 100 m3 | C131: 1200 | D131: =D110*$C131/100 -> 359.9049967 | E131: 359.9049967
A132: Next 400 m3 | C132: =3100-C131 -> 1900 | D132: =D111*$C132/100 -> 558.6232239 | E132: 558.6232239
A133: GT 500m3 | C133: 0 | D133: =D112*$C133/100 -> 0 | E133: 0
A134: Contracted Demand | C134: 0 | D134: =D113*$C134/100 -> 0 | E134: 0
A135: Gas Supply | C135: =SUM(C131:C134) -> 3100 | D135: =D114*$C135/100 -> 402.5288 | E135: 402.5288
A136: Upstream Recovery Charge | C136: =C135 -> 3100 | D136: =D115*$C136/100 -> 45.694 | E136: 45.694
A137: Transportation & Storage Charge | C137: =C136 -> 3100 | D137: =D116*$C137/100 -> 83.6442 | E137: 83.6442
A138: Federal Carbon Charge | C138: =C135 -> 3100 | D138: =D117*$C138/100 -> 472.75 | E138: 472.75
A139: Total Delivery | D139: =SUM(D129:D138) -> 2271.115031 | E139: =SUM(E129:E138) -> 2271.115031
A141: Rate Riders | C141: Metric
A142: =A120 -> Delay in Revenue Recovery Rate Rider | C142: =C135 -> 3100 | D142: =$C142*D120/100 -> 50.623 | E142: 50.623 | F142: =E142-D142 -> 0
A143: ECVA Rate Rider | C143: =C142 -> 3100 | D143: =$C143*D121/100 -> 7.6911 | E143: 7.6911 | F143: 0
A144: CIACVA Rate Rider | C144: =C142 -> 3100 | D144: =$C144*D122/100 -> 71.5728 | E144: 71.5728 | F144: 0
A145: MTVA Rate Rider | C145: =C143 -> 3100 | D145: =$C145*D123/100 -> 15.65996 | E145: 15.65996 | F145: 0
A146: ORDA Rate Rider | C146: =C144 -> 3100 | D146: =$C146*D124/100 -> -8.4878 | E146: -8.4878 | F146: 0
A147: CVVA Rate Rider | C147: 12 | D147: =$C147*D125 -> 64.44 | E147: =$C147*E125 -> 0 | F147: -64.44
A148: CVVA Rate Rider - Variable | C148: =C146 -> 3100 | D148: =$C148*D126 -> 0 | E148: =$C148*E126/100 -> 133.2906601 | F148: 133.2906601
A149: Total Rate Riders | D149: =SUM(D142:D148) -> 201.49906 | E149: =SUM(E142:E148) -> 270.3497201 | F149: 68.85066015 | G149: =F149/D149 -> 0.3416922151
A151: Total Bill Impact | D151: =D139+D149 -> 2472.614091 | E151: =E139+E149 -> 2541.464751 | F151: =E151-D151 -> 68.85066015 | G151: =F151/D151 -> 0.0278452915

Sheet Staff-2 CVVA Calculation
A1: CVVA Fixed Rate Rider
C2: A | D2: B
C3: Unit | D3: Rate 1
A4: 1 | B4: Customer Count | C4: # | D4: ='B1.2 Billing Determinants'!E9 -> 5516
A5: 2 | B5: Sum | C5: $ | D5: 355611.7418
A6: 3 | B6: Rate Rider | C6: $/month | D6: =D5/D4/12 -> 5.372427813
A8: CVVA Variable Rate Rider
C9: A | D9: B
C10: Unit | D10: Rate 1
A11: 1 | B11: Consumption | C11: m3 | D11: ='B1.2 Billing Determinants'!F9+'B1.2 Billing Determinants'!G9+'B1.2 Billing Determinants'!H9 -> 8270620
A12: 2 | B12: Sum | C12: $ | D12: 355611.7418
A13: 3 | B13: Rate Rider | C13: ¢/m3 | D13: =D12/D11*100 -> 4.299698714
